Workbook

Sheet Control

Sheet AUX2 (hidden)
A1: ='Net42'!B1+'Net41'!B1+'Net32'!B1+'Net31'!B1+'Net22'!B1+'Net21'!B1+'Net12'!B1+'Net11'!B1+SUM(A7:A18) -> 0 | B1: Vtriac(vba) | C1: 1.5 | D1: =+'Net11'!D1+'Net12'!D1+'Net21'!D1+'Net22'!D1+'Net31'!D1+'Net32'!D1+'Net41'!D1+'Net42'!D1 -> 0 | U1: V0 | V1: 1
C2: =+C5*1 -> 60 | J2: m | U2: V01 | V2: 2
J3: ft | U3: V02 | V3: 3
D4: V | E4: m | F4: i temp | G4: i | H4: drop | I4: k | J4: dist | K4: L | L4: cable | M4: Vinput | N4: 0.0001 | U4: V03 | V4: 4
A5: PS - Imax Vout | B5: 15 | C5: 60 | D5: V | E5: - | F5: A | G5: A | H5: V | I5: - | J5: m | K5: km | M5: V | N5: accuracy | U5: V04 | V5: 5
A6: Vmin amp. | B6: 44 | C6: =IF(C2=60,66,90) -> 66 | D6: 60 | N6: =ABS(SUM(N7:N14)) -> 0 | U6: I01 | V6: 6
A7: =IF(D7<0,1,0) -> 0 | B7: 7 | C7: 11 | D7: =+D15-H7 -> 60 | E7: 1 | F7: =+'Net11'!D2 -> 0 | G7: =+F7*E7 -> 0 | H7: =+G7*K7*VLOOKUP(L7,specs!$K$5:$L$19,2) -> 0 | I7: 1 | J7: 0 | K7: =+IF($J$5="m",J7,(J7*0.3048))/1000*I7 -> 0 | L7: cable | M7: 60 | N7: =E7*(+M7-D7) -> 0 | U7: I02 | V7: 7
A8: 0 | B8: 8 | C8: 12 | D8: =+D15-H8 -> 60 | E8: 1 | F8: =+'Net12'!D2 -> 0 | G8: =+F8*E8 -> 0 | H8: =+G8*K8*VLOOKUP(L8,specs!$K$5:$L$19,2) -> 0 | I8: 1 | J8: 0 | K8: =+IF($J$5="m",J8,(J8*0.3048))/1000*I8 -> 0 | L8: cable | M8: 60 | N8: =E8*(+M8-D8) -> 0 | U8: I03 | V8: 8
A9: 0 | B9: 9 | C9: 21 | D9: =+D16-H9 -> 60 | E9: 1 | F9: =+'Net21'!D2 -> 0 | G9: 0 | H9: =+G9*K9*VLOOKUP(L9,specs!$K$5:$L$19,2) -> 0 | I9: 1 | J9: 0 | K9: 0 | L9: cable | M9: 60 | N9: 0 | U9: I04 | V9: 9
A10: 0 | B10: 10 | C10: 22 | D10: =+D16-H10 -> 60 | E10: 1 | F10: =+'Net22'!D2 -> 0 | G10: 0 | H10: =+G10*K10*VLOOKUP(L10,specs!$K$5:$L$19,2) -> 0 | I10: 1 | J10: 0 | K10: 0 | L10: cable | M10: 60 | N10: 0 | U10: V11 | V10: 10
A11: 0 | B11: 11 | C11: 31 | D11: =+D17-H11 -> 60 | E11: 1 | F11: =+'Net31'!D2 -> 0 | G11: 0 | H11: =+G11*K11*VLOOKUP(L11,specs!$K$5:$L$19,2) -> 0 | I11: 1 | J11: 0 | K11: 0 | L11: cable | M11: 60 | N11: 0 | U11: V12 | V11: 11
A12: 0 | B12: 12 | C12: 32 | D12: =+D17-H12 -> 60 | E12: 1 | F12: =+'Net32'!D2 -> 0 | G12: 0 | H12: =+G12*K12*VLOOKUP(L12,specs!$K$5:$L$19,2) -> 0 | I12: 1 | J12: 0 | K12: 0 | L12: cable | M12: 60 | N12: 0 | U12: V21 | V12: 12
A13: 0 | B13: 13 | C13: 41 | D13: =+D18-H13 -> 60 | E13: 1 | F13: =+'Net41'!D2 -> 0 | G13: 0 | H13: =+G13*K13*VLOOKUP(L13,specs!$K$5:$L$19,2) -> 0 | I13: 1 | J13: 0 | K13: 0 | L13: cable | M13: 60 | N13: 0 | U13: V22 | V13: 13
A14: 0 | B14: 14 | C14: 42 | D14: =+D18-H14 -> 60 | E14: 1 | F14: =+'Net42'!D2 -> 0 | G14: 0 | H14: =+G14*K14*VLOOKUP(L14,specs!$K$5:$L$19,2) -> 0 | I14: 1 | J14: 0 | K14: 0 | L14: cable | M14: 60 | N14: 0 | U14: V31 | V14: 14
A15: =IF(D15<0,1,0) -> 0 | B15: 15 | C15: 01 | D15: =+D16-H15 -> 60 | E15: 1 | F15: =SUM(F7:F8) -> 0 | G15: =+F15*E15 -> 0 | H15: =+G15*K15*VLOOKUP(L15,specs!$K$5:$L$19,2) -> 0 | I15: 1 | J15: 0 | K15: =+IF($J$5="m",J15,(J15*0.3048))/1000*I15 -> 0 | L15: cable | M15: =K15*VLOOKUP(L15,specs!$K$5:$L$19,2) -> 0 | U15: V32 | V15: 15
A16: =IF(D16<0,1,0) -> 0 | B16: 16 | C16: 02 | D16: =+D17-H16 -> 60 | E16: 1 | F16: =SUM(F7:F10) -> 0 | G16: =+F16*E16 -> 0 | H16: =+G16*K16*VLOOKUP(L16,specs!$K$5:$L$19,2) -> 0 | I16: 1 | J16: 0 | K16: =+IF($J$5="m",J16,(J16*0.3048))/1000*I16 -> 0 | L16: cable | M16: =K16*VLOOKUP(L16,specs!$K$5:$L$19,2) -> 0 | U16: V41 | V16: 16
A17: =IF(D17<0,1,0) -> 0 | B17: 17 | C17: 03 | D17: =+D18-H17 -> 60 | E17: 1 | F17: =SUM(F7:F12) -> 0 | G17: =+F17*E17 -> 0 | H17: =+G17*K17*VLOOKUP(L17,specs!$K$5:$L$19,2) -> 0 | I17: 1 | J17: 0 | K17: =+IF($J$5="m",J17,(J17*0.3048))/1000*I17 -> 0 | L17: cable | M17: =K17*VLOOKUP(L17,specs!$K$5:$L$19,2) -> 0 | U17: V42 | V17: 17
A18: =IF(D18<0,1,0) -> 0 | B18: 18 | C18: 04 | D18: =+D6-H18 -> 60 | E18: 1 | F18: =SUM(F7:F14) -> 0 | G18: =+F18*E18 -> 0 | H18: =+G18*K18*VLOOKUP(L18,specs!$K$5:$L$19,2) -> 0 | I18: 1 | J18: 0 | K18: =+IF($J$5="m",J18,(J18*0.3048))/1000*I18 -> 0 | L18: cable | M18: =K18*VLOOKUP(L18,specs!$K$5:$L$19,2) -> 0 | U18: I11 | V18: 18
H19: D6:L18 | U19: I12 | V19: 19
U20: I21 | V20: 20
A21: Updated Feb.2012 | C21: Booster Data | U21: I22 | V21: 21
A22: calc. data | C22: calc. data | D22: calc. data | E22: calc. data | U22: I31 | V22: 22
A23: Vin | B23: Ranges | C23: Mcont | D23: TrEff | E23: Bgain | F23: Vout | G23: Pin | H23: Iin | I23: Final Gain | J23: Efficiency | K23: P-triac | L23: P-transformer | M23: Pout | N23: Iout | U23: I32 | V23: 23
A24: 65 | B24: 56.6-66 | C24: 1 | D24: 97 | E24: 1.016 | F24: =A24*E24/C24-1.5 -> 64.54 | G24: =M24+L24+K24 -> 204.7442801 | H24: =G24/A24 -> 3.149912002 | I24: =F24/A24 -> 0.9929230769 | J24: =M24/G24 -> 0.9768282653 | K24: =N24*1.5 -> 4.648280136 | L24: =M24*(E24-1)*0.03 -> 0.096 | M24: 200 | N24: =M24/F24 -> 3.098853424 | U24: I41 | V24: 24
A25: 56.5 | B25: 48.3-56.6 | C25: 1.025 | D25: 96.8 | E25: 1.164 | F25: =A25*E25/C25-1.5 -> 62.66195122 | G25: =M25+L25+K25 -> 205.8371943 | H25: =G25/A25 -> 3.643136182 | I25: =F25/A25 -> 1.109061084 | J25: =M25/G25 -> 0.9716416933 | K25: =N25*1.5 -> 4.787594292 | L25: =M25*(E25-1)*0.032 -> 1.0496 | M25: 200 | N25: =M25/F25 -> 3.191729528 | U25: I42 | V25: 25
A26: 48.1 | B26: 41.4-48.3 | C26: 1.025 | D26: 96.5 | E26: 1.37 | F26: =A26*E26/C26-1.5 -> 62.7897561 | G26: =M26+L26+K26 -> 207.3678494 | H26: =G26/A26 -> 4.311181901 | I26: =F26/A26 -> 1.305400335 | J26: =M26/G26 -> 0.9644696637 | K26: =N26*1.5 -> 4.777849424 | L26: =M26*(E26-1)*0.035 -> 2.59 | M26: 200 | N26: =M26/F26 -> 3.185232949 | U26: Vend11 | V26: 26
A27: 41.3 | B27: 30.0-41.4 | C27: 1.025 | D27: 96.3 | E27: 1.609 | F27: =A27*E27/C27-1.5 -> 63.33092683 | G27: =M27+L27+K27 -> 209.0000221 | H27: =G27/A27 -> 5.060533223 | I27: =F27/A27 -> 1.533436485 | J27: =M27/G27 -> 0.9569376979 | K27: =N27*1.5 -> 4.7370221 | L27: =M27*(E27-1)*0.035 -> 4.263 | M27: 200 | N27: =M27/F27 -> 3.158014733 | U27: Vend12 | V27: 27
U28: Vend21 | V28: 28
A29: Vin | F29: Vout | G29: Pin | H29: Iin | I29: Final Gain | J29: Efficiency | K29: P-triac | L29: P-transformer | M29: Pout | N29: Iout | U29: Vend22 | V29: 29
A30: 87 | B30: 78.1-90.0 | C30: 1 | D30: 97 | E30: 1.012 | F30: =A30*E30/C30-1.5 -> 86.544 | G30: =M30+L30+K30 -> 203.5384448 | H30: =G30/A30 -> 2.339522354 | I30: =F30/A30 -> 0.9947586207 | J30: =M30/G30 -> 0.9826153491 | K30: =N30*1.5 -> 3.466444814 | L30: =M30*(E30-1)*0.03 -> 0.072 | M30: 200 | N30: =M30/F30 -> 2.310963209 | U30: Vend31 | V30: 30
A31: 78 | B31: 67.5-78.1 | C31: 1.025 | D31: 96.8 | E31: 1.166 | F31: =A31*E31/C31-1.5 -> 87.2297561 | G31: =M31+L31+K31 -> 204.5015934 | H31: =G31/A31 -> 2.6218153 | I31: =F31/A31 -> 1.118330206 | J31: =M31/G31 -> 0.9779874899 | K31: =N31*1.5 -> 3.439193383 | L31: =M31*(E31-1)*0.032 -> 1.0624 | M31: 200 | N31: =M31/F31 -> 2.292795589 | U31: Vend32 | V31: 31
A32: 67.4 | B32: 58.5-67.5 | C32: 1.025 | D32: 96.5 | E32: 1.352 | F32: =A32*E32/C32-1.5 -> 87.4022439 | G32: =M32+L32+K32 -> 205.8964062 | H32: =G32/A32 -> 3.054842821 | I32: =F32/A32 -> 1.296769197 | J32: =M32/G32 -> 0.9713622677 | K32: =N32*1.5 -> 3.432406156 | L32: =M32*(E32-1)*0.035 -> 2.464 | M32: 200 | N32: =M32/F32 -> 2.288270771 | U32: Vend41 | V32: 32
A33: 58.4 | B33: 40.0-58.5 | C33: 1.025 | D33: 96.3 | E33: 1.557 | F33: =A33*E33/C33-1.5 -> 87.21102439 | G33: =M33+L33+K33 -> 207.3389321 | H33: =G33/A33 -> 3.550324179 | I33: =F33/A33 -> 1.493339459 | J33: =M33/G33 -> 0.9646041773 | K33: =N33*1.5 -> 3.439932074 | L33: =M33*(E33-1)*0.035 -> 3.899 | M33: 200 | N33: =M33/F33 -> 2.293288049 | U33: Vend42 | V33: 33
A34: Pin = Pout + Ptriac + Pdelta-transformer, where | U34: PBVin | V34: 34
A35: Pin = Vin x Iin; | U35: PBVout | V35: 35
A36: Pout = Vout x Iout; | U36: PBcurin | V36: 36
U37: PBcurout | V37: 37
A38: Ptriac = Vtriac * Iout , where Vtriac=1.5V; | U38: Bgain | V38: 38
U39: STitleLocation | V39: 39
A40: Pdelta-transformer = (100 - K) / 100 * (n – 1) * Pout , where K=96.5% for range"1.32" , K=96.8% for range "1.2" and K=97% for range "1" | U40: sTitleVin | V40: 40
U41: sTitleVout | V41: 41
A42: Then, assuming | U42: STitleIin | V42: 42
U43: sTitleIout | V43: 43
A44: Vout = Vin * n / Mcont – Vtriac , where Mcont = 1 for range"1", Mcont=1.025 for other two ranges; | U44: sTitleGain | V44: 44
U45: time | V45: 45
A46: We get finally the booster input current Iin, derived from above, as a function of the booster output current Iout and the booster input voltage Vin: | U46: cntext | V46: 46
U47: cntloc | V47: 47
A48: Iin = Iout * n / Mcont * {1+(1 - K / 100) * (n – 1) * [ 1 – Vtriac / (Vout + Vtriac)]} | U48: cntsum | V48: 48
U49: cntloc04 | V49: 49
U50: cntsum04 | V50: 50
U51: cntloc03 | V51: 51
U52: cntsum03 | V52: 52
U53: cntloc02 | V53: 53
U54: cntsum02 | V54: 54

Sheet Net42 (hidden)
B1: =SUM(F22:O22) -> 0 | D1: =IF(O21<'AUX2'!B6,1,0) -> 0 | E1: =+'AUX2'!J5 -> m
B2: =+'AUX2'!M14 -> 60 | C2: U start, V | D2: =+O5*1 -> 0 | F2: 1 | G2: 2 | H2: 3 | I2: 4 | J2: 5 | K2: 6 | L2: 7 | M2: 8 | N2: 9 | O2: iteration10
E3: mult. | F3: =F6+F5*F4 -> 60 | G3: =G6+G5*G4 -> 60 | H3: 60 | I3: 60 | J3: 60 | K3: 60 | L3: 60 | M3: 60 | N3: 60 | O3: 60
C4: cable type | D4: cable | E4: 0 | F4: =VLOOKUP($D4,specs!$K$5:$L$19,2)*IF($E$1="m",$D5,($D5*0.3048))/1000 -> 0 | G4: =VLOOKUP($D4,specs!$K$5:$L$19,2)*IF($E$1="m",$D5,($D5*0.3048))/1000 -> 0 | H4: =VLOOKUP($D4,specs!$K$5:$L$19,2)*IF($E$1="m",$D5,($D5*0.3048))/1000 -> 0 | I4: =VLOOKUP($D4,specs!$K$5:$L$19,2)*IF($E$1="m",$D5,($D5*0.3048))/1000 -> 0 | J4: =VLOOKUP($D4,specs!$K$5:$L$19,2)*IF($E$1="m",$D5,($D5*0.3048))/1000 -> 0 | K4: =VLOOKUP($D4,specs!$K$5:$L$19,2)*IF($E$1="m",$D5,($D5*0.3048))/1000 -> 0 | L4: =VLOOKUP($D4,specs!$K$5:$L$19,2)*IF($E$1="m",$D5,($D5*0.3048))/1000 -> 0 | M4: =VLOOKUP($D4,specs!$K$5:$L$19,2)*IF($E$1="m",$D5,($D5*0.3048))/1000 -> 0 | N4: =VLOOKUP($D4,specs!$K$5:$L$19,2)*IF($E$1="m",$D5,($D5*0.3048))/1000 -> 0 | O4: =VLOOKUP($D4,specs!$K$5:$L$19,2)*IF($E$1="m",$D5,($D5*0.3048))/1000 -> 0
C5: span length,m | D5: 0 | E5: 0 | F5: =VLOOKUP($D6,specs!$D$5:$H$17,4)/F6*1.03*$E6+F8 -> 0 | G5: =VLOOKUP($D6,specs!$D$5:$H$17,4)/G6*1.03*$E6+G8 -> 0 | H5: =VLOOKUP($D6,specs!$D$5:$H$17,4)/H6*1.03*$E6+H8 -> 0 | I5: =VLOOKUP($D6,specs!$D$5:$H$17,4)/I6*1.03*$E6+I8 -> 0 | J5: =VLOOKUP($D6,specs!$D$5:$H$17,4)/J6*1.03*$E6+J8 -> 0 | K5: =VLOOKUP($D6,specs!$D$5:$H$17,4)/K6*1.03*$E6+K8 -> 0 | L5: =VLOOKUP($D6,specs!$D$5:$H$17,4)/L6*1.03*$E6+L8 -> 0 | M5: =VLOOKUP($D6,specs!$D$5:$H$17,4)/M6*1.03*$E6+M8 -> 0 | N5: =VLOOKUP($D6,specs!$D$5:$H$17,4)/N6*1.03*$E6+N8 -> 0 | O5: =VLOOKUP($D6,specs!$D$5:$H$17,4)/O6*1.03*$E6+O8 -> 0
C6: amplifier | D6: load | E6: 0 | F6: =F9+F8*F7 -> 60 | G6: =G9+G8*G7 -> 60 | H6: 60 | I6: 60 | J6: 60 | K6: 60 | L6: 60 | M6: 60 | N6: 60 | O6: 60
C7: cable type | D7: cable | E7: 0 | F7: =VLOOKUP($D7,specs!$K$5:$L$19,2)*IF($E$1="m",$D8,($D8*0.3048))/1000 -> 0 | G7: =VLOOKUP($D7,specs!$K$5:$L$19,2)*IF($E$1="m",$D8,($D8*0.3048))/1000 -> 0 | H7: =VLOOKUP($D7,specs!$K$5:$L$19,2)*IF($E$1="m",$D8,($D8*0.3048))/1000 -> 0 | I7: =VLOOKUP($D7,specs!$K$5:$L$19,2)*IF($E$1="m",$D8,($D8*0.3048))/1000 -> 0 | J7: =VLOOKUP($D7,specs!$K$5:$L$19,2)*IF($E$1="m",$D8,($D8*0.3048))/1000 -> 0 | K7: =VLOOKUP($D7,specs!$K$5:$L$19,2)*IF($E$1="m",$D8,($D8*0.3048))/1000 -> 0 | L7: =VLOOKUP($D7,specs!$K$5:$L$19,2)*IF($E$1="m",$D8,($D8*0.3048))/1000 -> 0 | M7: =VLOOKUP($D7,specs!$K$5:$L$19,2)*IF($E$1="m",$D8,($D8*0.3048))/1000 -> 0 | N7: =VLOOKUP($D7,specs!$K$5:$L$19,2)*IF($E$1="m",$D8,($D8*0.3048))/1000 -> 0 | O7: =VLOOKUP($D7,specs!$K$5:$L$19,2)*IF($E$1="m",$D8,($D8*0.3048))/1000 -> 0
C8: span length,m | D8: 0 | E8: 0 | F8: =VLOOKUP($D9,specs!$D$5:$H$17,4)/F9*1.03*$E9+F11 -> 0 | G8: =VLOOKUP($D9,specs!$D$5:$H$17,4)/G9*1.03*$E9+G11 -> 0 | H8: =VLOOKUP($D9,specs!$D$5:$H$17,4)/H9*1.03*$E9+H11 -> 0 | I8: =VLOOKUP($D9,specs!$D$5:$H$17,4)/I9*1.03*$E9+I11 -> 0 | J8: =VLOOKUP($D9,specs!$D$5:$H$17,4)/J9*1.03*$E9+J11 -> 0 | K8: =VLOOKUP($D9,specs!$D$5:$H$17,4)/K9*1.03*$E9+K11 -> 0 | L8: =VLOOKUP($D9,specs!$D$5:$H$17,4)/L9*1.03*$E9+L11 -> 0 | M8: =VLOOKUP($D9,specs!$D$5:$H$17,4)/M9*1.03*$E9+M11 -> 0 | N8: =VLOOKUP($D9,specs!$D$5:$H$17,4)/N9*1.03*$E9+N11 -> 0 | O8: =VLOOKUP($D9,specs!$D$5:$H$17,4)/O9*1.03*$E9+O11 -> 0
C9: amplifier | D9: load | E9: 0 | F9: =F12+F11*F10 -> 60 | G9: =G12+G11*G10 -> 60 | H9: 60 | I9: 60 | J9: 60 | K9: 60 | L9: 60 | M9: 60 | N9: 60 | O9: 60
C10: cable type | D10: cable | E10: 0 | F10: =VLOOKUP($D10,specs!$K$5:$L$19,2)*IF($E$1="m",$D11,($D11*0.3048))/1000 -> 0 | G10: =VLOOKUP($D10,specs!$K$5:$L$19,2)*IF($E$1="m",$D11,($D11*0.3048))/1000 -> 0 | H10: =VLOOKUP($D10,specs!$K$5:$L$19,2)*IF($E$1="m",$D11,($D11*0.3048))/1000 -> 0 | I10: =VLOOKUP($D10,specs!$K$5:$L$19,2)*IF($E$1="m",$D11,($D11*0.3048))/1000 -> 0 | J10: =VLOOKUP($D10,specs!$K$5:$L$19,2)*IF($E$1="m",$D11,($D11*0.3048))/1000 -> 0 | K10: =VLOOKUP($D10,specs!$K$5:$L$19,2)*IF($E$1="m",$D11,($D11*0.3048))/1000 -> 0 | L10: =VLOOKUP($D10,specs!$K$5:$L$19,2)*IF($E$1="m",$D11,($D11*0.3048))/1000 -> 0 | M10: =VLOOKUP($D10,specs!$K$5:$L$19,2)*IF($E$1="m",$D11,($D11*0.3048))/1000 -> 0 | N10: =VLOOKUP($D10,specs!$K$5:$L$19,2)*IF($E$1="m",$D11,($D11*0.3048))/1000 -> 0 | O10: =VLOOKUP($D10,specs!$K$5:$L$19,2)*IF($E$1="m",$D11,($D11*0.3048))/1000 -> 0
C11: span length,m | D11: 0 | E11: 0 | F11: =VLOOKUP($D12,specs!$D$5:$H$17,4)/F12*1.03*$E12+F14 -> 0 | G11: =VLOOKUP($D12,specs!$D$5:$H$17,4)/G12*1.03*$E12+G14 -> 0 | H11: =VLOOKUP($D12,specs!$D$5:$H$17,4)/H12*1.03*$E12+H14 -> 0 | I11: =VLOOKUP($D12,specs!$D$5:$H$17,4)/I12*1.03*$E12+I14 -> 0 | J11: =VLOOKUP($D12,specs!$D$5:$H$17,4)/J12*1.03*$E12+J14 -> 0 | K11: =VLOOKUP($D12,specs!$D$5:$H$17,4)/K12*1.03*$E12+K14 -> 0 | L11: =VLOOKUP($D12,specs!$D$5:$H$17,4)/L12*1.03*$E12+L14 -> 0 | M11: =VLOOKUP($D12,specs!$D$5:$H$17,4)/M12*1.03*$E12+M14 -> 0 | N11: =VLOOKUP($D12,specs!$D$5:$H$17,4)/N12*1.03*$E12+N14 -> 0 | O11: =VLOOKUP($D12,specs!$D$5:$H$17,4)/O12*1.03*$E12+O14 -> 0
C12: amplifier | D12: load | E12: 0 | F12: =F15+F14*F13 -> 60 | G12: =G15+G14*G13 -> 60 | H12: 60 | I12: 60 | J12: 60 | K12: 60 | L12: 60 | M12: 60 | N12: 60 | O12: 60
C13: cable type | D13: cable | E13: 0 | F13: =VLOOKUP($D13,specs!$K$5:$L$19,2)*IF($E$1="m",$D14,($D14*0.3048))/1000 -> 0 | G13: =VLOOKUP($D13,specs!$K$5:$L$19,2)*IF($E$1="m",$D14,($D14*0.3048))/1000 -> 0 | H13: =VLOOKUP($D13,specs!$K$5:$L$19,2)*IF($E$1="m",$D14,($D14*0.3048))/1000 -> 0 | I13: =VLOOKUP($D13,specs!$K$5:$L$19,2)*IF($E$1="m",$D14,($D14*0.3048))/1000 -> 0 | J13: =VLOOKUP($D13,specs!$K$5:$L$19,2)*IF($E$1="m",$D14,($D14*0.3048))/1000 -> 0 | K13: =VLOOKUP($D13,specs!$K$5:$L$19,2)*IF($E$1="m",$D14,($D14*0.3048))/1000 -> 0 | L13: =VLOOKUP($D13,specs!$K$5:$L$19,2)*IF($E$1="m",$D14,($D14*0.3048))/1000 -> 0 | M13: =VLOOKUP($D13,specs!$K$5:$L$19,2)*IF($E$1="m",$D14,($D14*0.3048))/1000 -> 0 | N13: =VLOOKUP($D13,specs!$K$5:$L$19,2)*IF($E$1="m",$D14,($D14*0.3048))/1000 -> 0 | O13: =VLOOKUP($D13,specs!$K$5:$L$19,2)*IF($E$1="m",$D14,($D14*0.3048))/1000 -> 0
C14: span length,m | D14: 0 | E14: 0 | F14: =VLOOKUP($D15,specs!$D$5:$H$17,4)/F15*1.03*$E15+F17 -> 0 | G14: =VLOOKUP($D15,specs!$D$5:$H$17,4)/G15*1.03*$E15+G17 -> 0 | H14: =VLOOKUP($D15,specs!$D$5:$H$17,4)/H15*1.03*$E15+H17 -> 0 | I14: =VLOOKUP($D15,specs!$D$5:$H$17,4)/I15*1.03*$E15+I17 -> 0 | J14: =VLOOKUP($D15,specs!$D$5:$H$17,4)/J15*1.03*$E15+J17 -> 0 | K14: =VLOOKUP($D15,specs!$D$5:$H$17,4)/K15*1.03*$E15+K17 -> 0 | L14: =VLOOKUP($D15,specs!$D$5:$H$17,4)/L15*1.03*$E15+L17 -> 0 | M14: =VLOOKUP($D15,specs!$D$5:$H$17,4)/M15*1.03*$E15+M17 -> 0 | N14: =VLOOKUP($D15,specs!$D$5:$H$17,4)/N15*1.03*$E15+N17 -> 0 | O14: =VLOOKUP($D15,specs!$D$5:$H$17,4)/O15*1.03*$E15+O17 -> 0
C15: amplifier | D15: load | E15: 0 | F15: =F18+F17*F16 -> 60 | G15: =G18+G17*G16 -> 60 | H15: 60 | I15: 60 | J15: 60 | K15: 60 | L15: 60 | M15: 60 | N15: 60 | O15: 60
C16: cable type | D16: cable | E16: 0 | F16: =VLOOKUP($D16,specs!$K$5:$L$19,2)*IF($E$1="m",$D17,($D17*0.3048))/1000 -> 0 | G16: =VLOOKUP($D16,specs!$K$5:$L$19,2)*IF($E$1="m",$D17,($D17*0.3048))/1000 -> 0 | H16: =VLOOKUP($D16,specs!$K$5:$L$19,2)*IF($E$1="m",$D17,($D17*0.3048))/1000 -> 0 | I16: =VLOOKUP($D16,specs!$K$5:$L$19,2)*IF($E$1="m",$D17,($D17*0.3048))/1000 -> 0 | J16: =VLOOKUP($D16,specs!$K$5:$L$19,2)*IF($E$1="m",$D17,($D17*0.3048))/1000 -> 0 | K16: =VLOOKUP($D16,specs!$K$5:$L$19,2)*IF($E$1="m",$D17,($D17*0.3048))/1000 -> 0 | L16: =VLOOKUP($D16,specs!$K$5:$L$19,2)*IF($E$1="m",$D17,($D17*0.3048))/1000 -> 0 | M16: =VLOOKUP($D16,specs!$K$5:$L$19,2)*IF($E$1="m",$D17,($D17*0.3048))/1000 -> 0 | N16: =VLOOKUP($D16,specs!$K$5:$L$19,2)*IF($E$1="m",$D17,($D17*0.3048))/1000 -> 0 | O16: =VLOOKUP($D16,specs!$K$5:$L$19,2)*IF($E$1="m",$D17,($D17*0.3048))/1000 -> 0
C17: span length,m | D17: 0 | E17: 0 | F17: =VLOOKUP($D18,specs!$D$5:$H$17,4)/F18*1.03*$E18+F20 -> 0 | G17: =VLOOKUP($D18,specs!$D$5:$H$17,4)/G18*1.03*$E18+G20 -> 0 | H17: =VLOOKUP($D18,specs!$D$5:$H$17,4)/H18*1.03*$E18+H20 -> 0 | I17: =VLOOKUP($D18,specs!$D$5:$H$17,4)/I18*1.03*$E18+I20 -> 0 | J17: =VLOOKUP($D18,specs!$D$5:$H$17,4)/J18*1.03*$E18+J20 -> 0 | K17: =VLOOKUP($D18,specs!$D$5:$H$17,4)/K18*1.03*$E18+K20 -> 0 | L17: =VLOOKUP($D18,specs!$D$5:$H$17,4)/L18*1.03*$E18+L20 -> 0 | M17: =VLOOKUP($D18,specs!$D$5:$H$17,4)/M18*1.03*$E18+M20 -> 0 | N17: =VLOOKUP($D18,specs!$D$5:$H$17,4)/N18*1.03*$E18+N20 -> 0 | O17: =VLOOKUP($D18,specs!$D$5:$H$17,4)/O18*1.03*$E18+O20 -> 0
C18: amplifier | D18: load | E18: 0 | F18: =F21+F20*F19 -> 60 | G18: =G21+G20*G19 -> 60 | H18: 60 | I18: 60 | J18: 60 | K18: 60 | L18: 60 | M18: 60 | N18: 60 | O18: 60
C19: cable type | D19: cable | E19: 0 | F19: =VLOOKUP($D19,specs!$K$5:$L$19,2)*IF($E$1="m",$D20,($D20*0.3048))/1000 -> 0 | G19: =VLOOKUP($D19,specs!$K$5:$L$19,2)*IF($E$1="m",$D20,($D20*0.3048))/1000 -> 0 | H19: =VLOOKUP($D19,specs!$K$5:$L$19,2)*IF($E$1="m",$D20,($D20*0.3048))/1000 -> 0 | I19: =VLOOKUP($D19,specs!$K$5:$L$19,2)*IF($E$1="m",$D20,($D20*0.3048))/1000 -> 0 | J19: =VLOOKUP($D19,specs!$K$5:$L$19,2)*IF($E$1="m",$D20,($D20*0.3048))/1000 -> 0 | K19: =VLOOKUP($D19,specs!$K$5:$L$19,2)*IF($E$1="m",$D20,($D20*0.3048))/1000 -> 0 | L19: =VLOOKUP($D19,specs!$K$5:$L$19,2)*IF($E$1="m",$D20,($D20*0.3048))/1000 -> 0 | M19: =VLOOKUP($D19,specs!$K$5:$L$19,2)*IF($E$1="m",$D20,($D20*0.3048))/1000 -> 0 | N19: =VLOOKUP($D19,specs!$K$5:$L$19,2)*IF($E$1="m",$D20,($D20*0.3048))/1000 -> 0 | O19: =VLOOKUP($D19,specs!$K$5:$L$19,2)*IF($E$1="m",$D20,($D20*0.3048))/1000 -> 0
C20: span length,m | D20: 0 | E20: 0 | F20: =VLOOKUP($D21,specs!$D$5:$H$17,4)/F21*1.03*$E21+F23 -> 0 | G20: =VLOOKUP($D21,specs!$D$5:$H$17,4)/G21*1.03*$E21+G23 -> 0 | H20: =VLOOKUP($D21,specs!$D$5:$H$17,4)/H21*1.03*$E21+H23 -> 0 | I20: =VLOOKUP($D21,specs!$D$5:$H$17,4)/I21*1.03*$E21+I23 -> 0 | J20: =VLOOKUP($D21,specs!$D$5:$H$17,4)/J21*1.03*$E21+J23 -> 0 | K20: =VLOOKUP($D21,specs!$D$5:$H$17,4)/K21*1.03*$E21+K23 -> 0 | L20: =VLOOKUP($D21,specs!$D$5:$H$17,4)/L21*1.03*$E21+L23 -> 0 | M20: =VLOOKUP($D21,specs!$D$5:$H$17,4)/M21*1.03*$E21+M23 -> 0 | N20: =VLOOKUP($D21,specs!$D$5:$H$17,4)/N21*1.03*$E21+N23 -> 0 | O20: =VLOOKUP($D21,specs!$D$5:$H$17,4)/O21*1.03*$E21+O23 -> 0
C21: amplifier | D21: load | E21: 0 | F21: =B2 -> 60 | G21: =F21-(F3-$B$2) -> 60 | H21: 60 | I21: 60 | J21: 60 | K21: 60 | L21: 60 | M21: 60 | N21: 60 | O21: 60
F22: =IF(F21<0,1,0) -> 0 | G22: =IF(G21<0,1,0) -> 0 | H22: 0 | I22: 0 | J22: 0 | K22: 0 | L22: 0 | M22: 0 | N22: 0 | O22: 0
C24: User added Branch
M27: =O21 -> 60
F34: Main Branch Net42

Sheet Net41 (hidden)
B1: =SUM(F22:O22) -> 0 | D1: =IF(O21<'AUX2'!B6,1,0) -> 0 | E1: =+'AUX2'!J5 -> m
B2: =+'AUX2'!M13 -> 60 | C2: U start, V | D2: =+O5*1 -> 0 | F2: 1 | G2: 2 | H2: 3 | I2: 4 | J2: 5 | K2: 6 | L2: 7 | M2: 8 | N2: 9 | O2: iteration10
E3: mult. | F3: =F6+F5*F4 -> 60 | G3: =G6+G5*G4 -> 60 | H3: 60 | I3: 60 | J3: 60 | K3: 60 | L3: 60 | M3: 60 | N3: 60 | O3: 60
C4: cable type | D4: cable | E4: 0 | F4: =VLOOKUP($D4,specs!$K$5:$L$19,2)*IF($E$1="m",$D5,($D5*0.3048))/1000 -> 0 | G4: =VLOOKUP($D4,specs!$K$5:$L$19,2)*IF($E$1="m",$D5,($D5*0.3048))/1000 -> 0 | H4: =VLOOKUP($D4,specs!$K$5:$L$19,2)*IF($E$1="m",$D5,($D5*0.3048))/1000 -> 0 | I4: =VLOOKUP($D4,specs!$K$5:$L$19,2)*IF($E$1="m",$D5,($D5*0.3048))/1000 -> 0 | J4: =VLOOKUP($D4,specs!$K$5:$L$19,2)*IF($E$1="m",$D5,($D5*0.3048))/1000 -> 0 | K4: =VLOOKUP($D4,specs!$K$5:$L$19,2)*IF($E$1="m",$D5,($D5*0.3048))/1000 -> 0 | L4: =VLOOKUP($D4,specs!$K$5:$L$19,2)*IF($E$1="m",$D5,($D5*0.3048))/1000 -> 0 | M4: =VLOOKUP($D4,specs!$K$5:$L$19,2)*IF($E$1="m",$D5,($D5*0.3048))/1000 -> 0 | N4: =VLOOKUP($D4,specs!$K$5:$L$19,2)*IF($E$1="m",$D5,($D5*0.3048))/1000 -> 0 | O4: =VLOOKUP($D4,specs!$K$5:$L$19,2)*IF($E$1="m",$D5,($D5*0.3048))/1000 -> 0
C5: span length,m | D5: 0 | E5: 0 | F5: =VLOOKUP($D6,specs!$D$5:$H$17,4)/F6*1.03*$E6+F8 -> 0 | G5: =VLOOKUP($D6,specs!$D$5:$H$17,4)/G6*1.03*$E6+G8 -> 0 | H5: =VLOOKUP($D6,specs!$D$5:$H$17,4)/H6*1.03*$E6+H8 -> 0 | I5: =VLOOKUP($D6,specs!$D$5:$H$17,4)/I6*1.03*$E6+I8 -> 0 | J5: =VLOOKUP($D6,specs!$D$5:$H$17,4)/J6*1.03*$E6+J8 -> 0 | K5: =VLOOKUP($D6,specs!$D$5:$H$17,4)/K6*1.03*$E6+K8 -> 0 | L5: =VLOOKUP($D6,specs!$D$5:$H$17,4)/L6*1.03*$E6+L8 -> 0 | M5: =VLOOKUP($D6,specs!$D$5:$H$17,4)/M6*1.03*$E6+M8 -> 0 | N5: =VLOOKUP($D6,specs!$D$5:$H$17,4)/N6*1.03*$E6+N8 -> 0 | O5: =VLOOKUP($D6,specs!$D$5:$H$17,4)/O6*1.03*$E6+O8 -> 0
C6: amplifier | D6: load | E6: 0 | F6: =F9+F8*F7 -> 60 | G6: =G9+G8*G7 -> 60 | H6: 60 | I6: 60 | J6: 60 | K6: 60 | L6: 60 | M6: 60 | N6: 60 | O6: 60
C7: cable type | D7: cable | E7: 0 | F7: =VLOOKUP($D7,specs!$K$5:$L$19,2)*IF($E$1="m",$D8,($D8*0.3048))/1000 -> 0 | G7: =VLOOKUP($D7,specs!$K$5:$L$19,2)*IF($E$1="m",$D8,($D8*0.3048))/1000 -> 0 | H7: =VLOOKUP($D7,specs!$K$5:$L$19,2)*IF($E$1="m",$D8,($D8*0.3048))/1000 -> 0 | I7: =VLOOKUP($D7,specs!$K$5:$L$19,2)*IF($E$1="m",$D8,($D8*0.3048))/1000 -> 0 | J7: =VLOOKUP($D7,specs!$K$5:$L$19,2)*IF($E$1="m",$D8,($D8*0.3048))/1000 -> 0 | K7: =VLOOKUP($D7,specs!$K$5:$L$19,2)*IF($E$1="m",$D8,($D8*0.3048))/1000 -> 0 | L7: =VLOOKUP($D7,specs!$K$5:$L$19,2)*IF($E$1="m",$D8,($D8*0.3048))/1000 -> 0 | M7: =VLOOKUP($D7,specs!$K$5:$L$19,2)*IF($E$1="m",$D8,($D8*0.3048))/1000 -> 0 | N7: =VLOOKUP($D7,specs!$K$5:$L$19,2)*IF($E$1="m",$D8,($D8*0.3048))/1000 -> 0 | O7: =VLOOKUP($D7,specs!$K$5:$L$19,2)*IF($E$1="m",$D8,($D8*0.3048))/1000 -> 0
C8: span length,m | D8: 0 | E8: 0 | F8: =VLOOKUP($D9,specs!$D$5:$H$17,4)/F9*1.03*$E9+F11 -> 0 | G8: =VLOOKUP($D9,specs!$D$5:$H$17,4)/G9*1.03*$E9+G11 -> 0 | H8: =VLOOKUP($D9,specs!$D$5:$H$17,4)/H9*1.03*$E9+H11 -> 0 | I8: =VLOOKUP($D9,specs!$D$5:$H$17,4)/I9*1.03*$E9+I11 -> 0 | J8: =VLOOKUP($D9,specs!$D$5:$H$17,4)/J9*1.03*$E9+J11 -> 0 | K8: =VLOOKUP($D9,specs!$D$5:$H$17,4)/K9*1.03*$E9+K11 -> 0 | L8: =VLOOKUP($D9,specs!$D$5:$H$17,4)/L9*1.03*$E9+L11 -> 0 | M8: =VLOOKUP($D9,specs!$D$5:$H$17,4)/M9*1.03*$E9+M11 -> 0 | N8: =VLOOKUP($D9,specs!$D$5:$H$17,4)/N9*1.03*$E9+N11 -> 0 | O8: =VLOOKUP($D9,specs!$D$5:$H$17,4)/O9*1.03*$E9+O11 -> 0
C9: amplifier | D9: load | E9: 0 | F9: =F12+F11*F10 -> 60 | G9: =G12+G11*G10 -> 60 | H9: 60 | I9: 60 | J9: 60 | K9: 60 | L9: 60 | M9: 60 | N9: 60 | O9: 60
C10: cable type | D10: cable | E10: 0 | F10: =VLOOKUP($D10,specs!$K$5:$L$19,2)*IF($E$1="m",$D11,($D11*0.3048))/1000 -> 0 | G10: =VLOOKUP($D10,specs!$K$5:$L$19,2)*IF($E$1="m",$D11,($D11*0.3048))/1000 -> 0 | H10: =VLOOKUP($D10,specs!$K$5:$L$19,2)*IF($E$1="m",$D11,($D11*0.3048))/1000 -> 0 | I10: =VLOOKUP($D10,specs!$K$5:$L$19,2)*IF($E$1="m",$D11,($D11*0.3048))/1000 -> 0 | J10: =VLOOKUP($D10,specs!$K$5:$L$19,2)*IF($E$1="m",$D11,($D11*0.3048))/1000 -> 0 | K10: =VLOOKUP($D10,specs!$K$5:$L$19,2)*IF($E$1="m",$D11,($D11*0.3048))/1000 -> 0 | L10: =VLOOKUP($D10,specs!$K$5:$L$19,2)*IF($E$1="m",$D11,($D11*0.3048))/1000 -> 0 | M10: =VLOOKUP($D10,specs!$K$5:$L$19,2)*IF($E$1="m",$D11,($D11*0.3048))/1000 -> 0 | N10: =VLOOKUP($D10,specs!$K$5:$L$19,2)*IF($E$1="m",$D11,($D11*0.3048))/1000 -> 0 | O10: =VLOOKUP($D10,specs!$K$5:$L$19,2)*IF($E$1="m",$D11,($D11*0.3048))/1000 -> 0
C11: span length,m | D11: 0 | E11: 0 | F11: =VLOOKUP($D12,specs!$D$5:$H$17,4)/F12*1.03*$E12+F14 -> 0 | G11: =VLOOKUP($D12,specs!$D$5:$H$17,4)/G12*1.03*$E12+G14 -> 0 | H11: =VLOOKUP($D12,specs!$D$5:$H$17,4)/H12*1.03*$E12+H14 -> 0 | I11: =VLOOKUP($D12,specs!$D$5:$H$17,4)/I12*1.03*$E12+I14 -> 0 | J11: =VLOOKUP($D12,specs!$D$5:$H$17,4)/J12*1.03*$E12+J14 -> 0 | K11: =VLOOKUP($D12,specs!$D$5:$H$17,4)/K12*1.03*$E12+K14 -> 0 | L11: =VLOOKUP($D12,specs!$D$5:$H$17,4)/L12*1.03*$E12+L14 -> 0 | M11: =VLOOKUP($D12,specs!$D$5:$H$17,4)/M12*1.03*$E12+M14 -> 0 | N11: =VLOOKUP($D12,specs!$D$5:$H$17,4)/N12*1.03*$E12+N14 -> 0 | O11: =VLOOKUP($D12,specs!$D$5:$H$17,4)/O12*1.03*$E12+O14 -> 0
C12: amplifier | D12: load | E12: 0 | F12: =F15+F14*F13 -> 60 | G12: =G15+G14*G13 -> 60 | H12: 60 | I12: 60 | J12: 60 | K12: 60 | L12: 60 | M12: 60 | N12: 60 | O12: 60
C13: cable type | D13: cable | E13: 0 | F13: =VLOOKUP($D13,specs!$K$5:$L$19,2)*IF($E$1="m",$D14,($D14*0.3048))/1000 -> 0 | G13: =VLOOKUP($D13,specs!$K$5:$L$19,2)*IF($E$1="m",$D14,($D14*0.3048))/1000 -> 0 | H13: =VLOOKUP($D13,specs!$K$5:$L$19,2)*IF($E$1="m",$D14,($D14*0.3048))/1000 -> 0 | I13: =VLOOKUP($D13,specs!$K$5:$L$19,2)*IF($E$1="m",$D14,($D14*0.3048))/1000 -> 0 | J13: =VLOOKUP($D13,specs!$K$5:$L$19,2)*IF($E$1="m",$D14,($D14*0.3048))/1000 -> 0 | K13: =VLOOKUP($D13,specs!$K$5:$L$19,2)*IF($E$1="m",$D14,($D14*0.3048))/1000 -> 0 | L13: =VLOOKUP($D13,specs!$K$5:$L$19,2)*IF($E$1="m",$D14,($D14*0.3048))/1000 -> 0 | M13: =VLOOKUP($D13,specs!$K$5:$L$19,2)*IF($E$1="m",$D14,($D14*0.3048))/1000 -> 0 | N13: =VLOOKUP($D13,specs!$K$5:$L$19,2)*IF($E$1="m",$D14,($D14*0.3048))/1000 -> 0 | O13: =VLOOKUP($D13,specs!$K$5:$L$19,2)*IF($E$1="m",$D14,($D14*0.3048))/1000 -> 0
C14: span length,m | D14: 0 | E14: 0 | F14: =VLOOKUP($D15,specs!$D$5:$H$17,4)/F15*1.03*$E15+F17 -> 0 | G14: =VLOOKUP($D15,specs!$D$5:$H$17,4)/G15*1.03*$E15+G17 -> 0 | H14: =VLOOKUP($D15,specs!$D$5:$H$17,4)/H15*1.03*$E15+H17 -> 0 | I14: =VLOOKUP($D15,specs!$D$5:$H$17,4)/I15*1.03*$E15+I17 -> 0 | J14: =VLOOKUP($D15,specs!$D$5:$H$17,4)/J15*1.03*$E15+J17 -> 0 | K14: =VLOOKUP($D15,specs!$D$5:$H$17,4)/K15*1.03*$E15+K17 -> 0 | L14: =VLOOKUP($D15,specs!$D$5:$H$17,4)/L15*1.03*$E15+L17 -> 0 | M14: =VLOOKUP($D15,specs!$D$5:$H$17,4)/M15*1.03*$E15+M17 -> 0 | N14: =VLOOKUP($D15,specs!$D$5:$H$17,4)/N15*1.03*$E15+N17 -> 0 | O14: =VLOOKUP($D15,specs!$D$5:$H$17,4)/O15*1.03*$E15+O17 -> 0
C15: amplifier | D15: load | E15: 0 | F15: =F18+F17*F16 -> 60 | G15: =G18+G17*G16 -> 60 | H15: 60 | I15: 60 | J15: 60 | K15: 60 | L15: 60 | M15: 60 | N15: 60 | O15: 60
C16: cable type | D16: cable | E16: 0 | F16: =VLOOKUP($D16,specs!$K$5:$L$19,2)*IF($E$1="m",$D17,($D17*0.3048))/1000 -> 0 | G16: =VLOOKUP($D16,specs!$K$5:$L$19,2)*IF($E$1="m",$D17,($D17*0.3048))/1000 -> 0 | H16: =VLOOKUP($D16,specs!$K$5:$L$19,2)*IF($E$1="m",$D17,($D17*0.3048))/1000 -> 0 | I16: =VLOOKUP($D16,specs!$K$5:$L$19,2)*IF($E$1="m",$D17,($D17*0.3048))/1000 -> 0 | J16: =VLOOKUP($D16,specs!$K$5:$L$19,2)*IF($E$1="m",$D17,($D17*0.3048))/1000 -> 0 | K16: =VLOOKUP($D16,specs!$K$5:$L$19,2)*IF($E$1="m",$D17,($D17*0.3048))/1000 -> 0 | L16: =VLOOKUP($D16,specs!$K$5:$L$19,2)*IF($E$1="m",$D17,($D17*0.3048))/1000 -> 0 | M16: =VLOOKUP($D16,specs!$K$5:$L$19,2)*IF($E$1="m",$D17,($D17*0.3048))/1000 -> 0 | N16: =VLOOKUP($D16,specs!$K$5:$L$19,2)*IF($E$1="m",$D17,($D17*0.3048))/1000 -> 0 | O16: =VLOOKUP($D16,specs!$K$5:$L$19,2)*IF($E$1="m",$D17,($D17*0.3048))/1000 -> 0
C17: span length,m | D17: 0 | E17: 0 | F17: =VLOOKUP($D18,specs!$D$5:$H$17,4)/F18*1.03*$E18+F20 -> 0 | G17: =VLOOKUP($D18,specs!$D$5:$H$17,4)/G18*1.03*$E18+G20 -> 0 | H17: =VLOOKUP($D18,specs!$D$5:$H$17,4)/H18*1.03*$E18+H20 -> 0 | I17: =VLOOKUP($D18,specs!$D$5:$H$17,4)/I18*1.03*$E18+I20 -> 0 | J17: =VLOOKUP($D18,specs!$D$5:$H$17,4)/J18*1.03*$E18+J20 -> 0 | K17: =VLOOKUP($D18,specs!$D$5:$H$17,4)/K18*1.03*$E18+K20 -> 0 | L17: =VLOOKUP($D18,specs!$D$5:$H$17,4)/L18*1.03*$E18+L20 -> 0 | M17: =VLOOKUP($D18,specs!$D$5:$H$17,4)/M18*1.03*$E18+M20 -> 0 | N17: =VLOOKUP($D18,specs!$D$5:$H$17,4)/N18*1.03*$E18+N20 -> 0 | O17: =VLOOKUP($D18,specs!$D$5:$H$17,4)/O18*1.03*$E18+O20 -> 0
C18: amplifier | D18: load | E18: 0 | F18: =F21+F20*F19 -> 60 | G18: =G21+G20*G19 -> 60 | H18: 60 | I18: 60 | J18: 60 | K18: 60 | L18: 60 | M18: 60 | N18: 60 | O18: 60
C19: cable type | D19: cable | E19: 0 | F19: =VLOOKUP($D19,specs!$K$5:$L$19,2)*IF($E$1="m",$D20,($D20*0.3048))/1000 -> 0 | G19: =VLOOKUP($D19,specs!$K$5:$L$19,2)*IF($E$1="m",$D20,($D20*0.3048))/1000 -> 0 | H19: =VLOOKUP($D19,specs!$K$5:$L$19,2)*IF($E$1="m",$D20,($D20*0.3048))/1000 -> 0 | I19: =VLOOKUP($D19,specs!$K$5:$L$19,2)*IF($E$1="m",$D20,($D20*0.3048))/1000 -> 0 | J19: =VLOOKUP($D19,specs!$K$5:$L$19,2)*IF($E$1="m",$D20,($D20*0.3048))/1000 -> 0 | K19: =VLOOKUP($D19,specs!$K$5:$L$19,2)*IF($E$1="m",$D20,($D20*0.3048))/1000 -> 0 | L19: =VLOOKUP($D19,specs!$K$5:$L$19,2)*IF($E$1="m",$D20,($D20*0.3048))/1000 -> 0 | M19: =VLOOKUP($D19,specs!$K$5:$L$19,2)*IF($E$1="m",$D20,($D20*0.3048))/1000 -> 0 | N19: =VLOOKUP($D19,specs!$K$5:$L$19,2)*IF($E$1="m",$D20,($D20*0.3048))/1000 -> 0 | O19: =VLOOKUP($D19,specs!$K$5:$L$19,2)*IF($E$1="m",$D20,($D20*0.3048))/1000 -> 0
C20: span length,m | D20: 0 | E20: 0 | F20: =VLOOKUP($D21,specs!$D$5:$H$17,4)/F21*1.03*$E21+F23 -> 0 | G20: =VLOOKUP($D21,specs!$D$5:$H$17,4)/G21*1.03*$E21+G23 -> 0 | H20: =VLOOKUP($D21,specs!$D$5:$H$17,4)/H21*1.03*$E21+H23 -> 0 | I20: =VLOOKUP($D21,specs!$D$5:$H$17,4)/I21*1.03*$E21+I23 -> 0 | J20: =VLOOKUP($D21,specs!$D$5:$H$17,4)/J21*1.03*$E21+J23 -> 0 | K20: =VLOOKUP($D21,specs!$D$5:$H$17,4)/K21*1.03*$E21+K23 -> 0 | L20: =VLOOKUP($D21,specs!$D$5:$H$17,4)/L21*1.03*$E21+L23 -> 0 | M20: =VLOOKUP($D21,specs!$D$5:$H$17,4)/M21*1.03*$E21+M23 -> 0 | N20: =VLOOKUP($D21,specs!$D$5:$H$17,4)/N21*1.03*$E21+N23 -> 0 | O20: =VLOOKUP($D21,specs!$D$5:$H$17,4)/O21*1.03*$E21+O23 -> 0
C21: amplifier | D21: load | E21: 0 | F21: =B2 -> 60 | G21: =F21-(F3-$B$2) -> 60 | H21: 60 | I21: 60 | J21: 60 | K21: 60 | L21: 60 | M21: 60 | N21: 60 | O21: 60
F22: =IF(F21<0,1,0) -> 0 | G22: =IF(G21<0,1,0) -> 0 | H22: 0 | I22: 0 | J22: 0 | K22: 0 | L22: 0 | M22: 0 | N22: 0 | O22: 0
C24: User added Branch
M27: =O21 -> 60
F34: Main Branch Net41

Sheet Net32 (hidden)
B1: =SUM(F22:O22) -> 0 | D1: =IF(O21<'AUX2'!B6,1,0) -> 0 | E1: =+'AUX2'!J5 -> m
B2: ='AUX2'!M12 -> 60 | C2: U start, V | D2: =+O5*1 -> 0 | F2: 1 | G2: 2 | H2: 3 | I2: 4 | J2: 5 | K2: 6 | L2: 7 | M2: 8 | N2: 9 | O2: iteration10
E3: mult. | F3: =F6+F5*F4 -> 60 | G3: =G6+G5*G4 -> 60 | H3: 60 | I3: 60 | J3: 60 | K3: 60 | L3: 60 | M3: 60 | N3: 60 | O3: 60
C4: cable type | D4: cable | E4: 0 | F4: =VLOOKUP($D4,specs!$K$5:$L$19,2)*IF($E$1="m",$D5,($D5*0.3048))/1000 -> 0 | G4: =VLOOKUP($D4,specs!$K$5:$L$19,2)*IF($E$1="m",$D5,($D5*0.3048))/1000 -> 0 | H4: =VLOOKUP($D4,specs!$K$5:$L$19,2)*IF($E$1="m",$D5,($D5*0.3048))/1000 -> 0 | I4: =VLOOKUP($D4,specs!$K$5:$L$19,2)*IF($E$1="m",$D5,($D5*0.3048))/1000 -> 0 | J4: =VLOOKUP($D4,specs!$K$5:$L$19,2)*IF($E$1="m",$D5,($D5*0.3048))/1000 -> 0 | K4: =VLOOKUP($D4,specs!$K$5:$L$19,2)*IF($E$1="m",$D5,($D5*0.3048))/1000 -> 0 | L4: =VLOOKUP($D4,specs!$K$5:$L$19,2)*IF($E$1="m",$D5,($D5*0.3048))/1000 -> 0 | M4: =VLOOKUP($D4,specs!$K$5:$L$19,2)*IF($E$1="m",$D5,($D5*0.3048))/1000 -> 0 | N4: =VLOOKUP($D4,specs!$K$5:$L$19,2)*IF($E$1="m",$D5,($D5*0.3048))/1000 -> 0 | O4: =VLOOKUP($D4,specs!$K$5:$L$19,2)*IF($E$1="m",$D5,($D5*0.3048))/1000 -> 0
C5: span length,m | D5: 0 | E5: 0 | F5: =VLOOKUP($D6,specs!$D$5:$H$17,4)/F6*1.03*$E6+F8 -> 0 | G5: =VLOOKUP($D6,specs!$D$5:$H$17,4)/G6*1.03*$E6+G8 -> 0 | H5: =VLOOKUP($D6,specs!$D$5:$H$17,4)/H6*1.03*$E6+H8 -> 0 | I5: =VLOOKUP($D6,specs!$D$5:$H$17,4)/I6*1.03*$E6+I8 -> 0 | J5: =VLOOKUP($D6,specs!$D$5:$H$17,4)/J6*1.03*$E6+J8 -> 0 | K5: =VLOOKUP($D6,specs!$D$5:$H$17,4)/K6*1.03*$E6+K8 -> 0 | L5: =VLOOKUP($D6,specs!$D$5:$H$17,4)/L6*1.03*$E6+L8 -> 0 | M5: =VLOOKUP($D6,specs!$D$5:$H$17,4)/M6*1.03*$E6+M8 -> 0 | N5: =VLOOKUP($D6,specs!$D$5:$H$17,4)/N6*1.03*$E6+N8 -> 0 | O5: =VLOOKUP($D6,specs!$D$5:$H$17,4)/O6*1.03*$E6+O8 -> 0
C6: amplifier | D6: load | E6: 0 | F6: =F9+F8*F7 -> 60 | G6: =G9+G8*G7 -> 60 | H6: 60 | I6: 60 | J6: 60 | K6: 60 | L6: 60 | M6: 60 | N6: 60 | O6: 60
C7: cable type | D7: cable | E7: 0 | F7: =VLOOKUP($D7,specs!$K$5:$L$19,2)*IF($E$1="m",$D8,($D8*0.3048))/1000 -> 0 | G7: =VLOOKUP($D7,specs!$K$5:$L$19,2)*IF($E$1="m",$D8,($D8*0.3048))/1000 -> 0 | H7: =VLOOKUP($D7,specs!$K$5:$L$19,2)*IF($E$1="m",$D8,($D8*0.3048))/1000 -> 0 | I7: =VLOOKUP($D7,specs!$K$5:$L$19,2)*IF($E$1="m",$D8,($D8*0.3048))/1000 -> 0 | J7: =VLOOKUP($D7,specs!$K$5:$L$19,2)*IF($E$1="m",$D8,($D8*0.3048))/1000 -> 0 | K7: =VLOOKUP($D7,specs!$K$5:$L$19,2)*IF($E$1="m",$D8,($D8*0.3048))/1000 -> 0 | L7: =VLOOKUP($D7,specs!$K$5:$L$19,2)*IF($E$1="m",$D8,($D8*0.3048))/1000 -> 0 | M7: =VLOOKUP($D7,specs!$K$5:$L$19,2)*IF($E$1="m",$D8,($D8*0.3048))/1000 -> 0 | N7: =VLOOKUP($D7,specs!$K$5:$L$19,2)*IF($E$1="m",$D8,($D8*0.3048))/1000 -> 0 | O7: =VLOOKUP($D7,specs!$K$5:$L$19,2)*IF($E$1="m",$D8,($D8*0.3048))/1000 -> 0
C8: span length,m | D8: 0 | E8: 0 | F8: =VLOOKUP($D9,specs!$D$5:$H$17,4)/F9*1.03*$E9+F11 -> 0 | G8: =VLOOKUP($D9,specs!$D$5:$H$17,4)/G9*1.03*$E9+G11 -> 0 | H8: =VLOOKUP($D9,specs!$D$5:$H$17,4)/H9*1.03*$E9+H11 -> 0 | I8: =VLOOKUP($D9,specs!$D$5:$H$17,4)/I9*1.03*$E9+I11 -> 0 | J8: =VLOOKUP($D9,specs!$D$5:$H$17,4)/J9*1.03*$E9+J11 -> 0 | K8: =VLOOKUP($D9,specs!$D$5:$H$17,4)/K9*1.03*$E9+K11 -> 0 | L8: =VLOOKUP($D9,specs!$D$5:$H$17,4)/L9*1.03*$E9+L11 -> 0 | M8: =VLOOKUP($D9,specs!$D$5:$H$17,4)/M9*1.03*$E9+M11 -> 0 | N8: =VLOOKUP($D9,specs!$D$5:$H$17,4)/N9*1.03*$E9+N11 -> 0 | O8: =VLOOKUP($D9,specs!$D$5:$H$17,4)/O9*1.03*$E9+O11 -> 0
C9: amplifier | D9: load | E9: 0 | F9: =F12+F11*F10 -> 60 | G9: =G12+G11*G10 -> 60 | H9: 60 | I9: 60 | J9: 60 | K9: 60 | L9: 60 | M9: 60 | N9: 60 | O9: 60
C10: cable type | D10: cable | E10: 0 | F10: =VLOOKUP($D10,specs!$K$5:$L$19,2)*IF($E$1="m",$D11,($D11*0.3048))/1000 -> 0 | G10: =VLOOKUP($D10,specs!$K$5:$L$19,2)*IF($E$1="m",$D11,($D11*0.3048))/1000 -> 0 | H10: =VLOOKUP($D10,specs!$K$5:$L$19,2)*IF($E$1="m",$D11,($D11*0.3048))/1000 -> 0 | I10: =VLOOKUP($D10,specs!$K$5:$L$19,2)*IF($E$1="m",$D11,($D11*0.3048))/1000 -> 0 | J10: =VLOOKUP($D10,specs!$K$5:$L$19,2)*IF($E$1="m",$D11,($D11*0.3048))/1000 -> 0 | K10: =VLOOKUP($D10,specs!$K$5:$L$19,2)*IF($E$1="m",$D11,($D11*0.3048))/1000 -> 0 | L10: =VLOOKUP($D10,specs!$K$5:$L$19,2)*IF($E$1="m",$D11,($D11*0.3048))/1000 -> 0 | M10: =VLOOKUP($D10,specs!$K$5:$L$19,2)*IF($E$1="m",$D11,($D11*0.3048))/1000 -> 0 | N10: =VLOOKUP($D10,specs!$K$5:$L$19,2)*IF($E$1="m",$D11,($D11*0.3048))/1000 -> 0 | O10: =VLOOKUP($D10,specs!$K$5:$L$19,2)*IF($E$1="m",$D11,($D11*0.3048))/1000 -> 0
C11: span length,m | D11: 0 | E11: 0 | F11: =VLOOKUP($D12,specs!$D$5:$H$17,4)/F12*1.03*$E12+F14 -> 0 | G11: =VLOOKUP($D12,specs!$D$5:$H$17,4)/G12*1.03*$E12+G14 -> 0 | H11: =VLOOKUP($D12,specs!$D$5:$H$17,4)/H12*1.03*$E12+H14 -> 0 | I11: =VLOOKUP($D12,specs!$D$5:$H$17,4)/I12*1.03*$E12+I14 -> 0 | J11: =VLOOKUP($D12,specs!$D$5:$H$17,4)/J12*1.03*$E12+J14 -> 0 | K11: =VLOOKUP($D12,specs!$D$5:$H$17,4)/K12*1.03*$E12+K14 -> 0 | L11: =VLOOKUP($D12,specs!$D$5:$H$17,4)/L12*1.03*$E12+L14 -> 0 | M11: =VLOOKUP($D12,specs!$D$5:$H$17,4)/M12*1.03*$E12+M14 -> 0 | N11: =VLOOKUP($D12,specs!$D$5:$H$17,4)/N12*1.03*$E12+N14 -> 0 | O11: =VLOOKUP($D12,specs!$D$5:$H$17,4)/O12*1.03*$E12+O14 -> 0
C12: amplifier | D12: load | E12: 0 | F12: =F15+F14*F13 -> 60 | G12: =G15+G14*G13 -> 60 | H12: 60 | I12: 60 | J12: 60 | K12: 60 | L12: 60 | M12: 60 | N12: 60 | O12: 60
C13: cable type | D13: cable | E13: 0 | F13: =VLOOKUP($D13,specs!$K$5:$L$19,2)*IF($E$1="m",$D14,($D14*0.3048))/1000 -> 0 | G13: =VLOOKUP($D13,specs!$K$5:$L$19,2)*IF($E$1="m",$D14,($D14*0.3048))/1000 -> 0 | H13: =VLOOKUP($D13,specs!$K$5:$L$19,2)*IF($E$1="m",$D14,($D14*0.3048))/1000 -> 0 | I13: =VLOOKUP($D13,specs!$K$5:$L$19,2)*IF($E$1="m",$D14,($D14*0.3048))/1000 -> 0 | J13: =VLOOKUP($D13,specs!$K$5:$L$19,2)*IF($E$1="m",$D14,($D14*0.3048))/1000 -> 0 | K13: =VLOOKUP($D13,specs!$K$5:$L$19,2)*IF($E$1="m",$D14,($D14*0.3048))/1000 -> 0 | L13: =VLOOKUP($D13,specs!$K$5:$L$19,2)*IF($E$1="m",$D14,($D14*0.3048))/1000 -> 0 | M13: =VLOOKUP($D13,specs!$K$5:$L$19,2)*IF($E$1="m",$D14,($D14*0.3048))/1000 -> 0 | N13: =VLOOKUP($D13,specs!$K$5:$L$19,2)*IF($E$1="m",$D14,($D14*0.3048))/1000 -> 0 | O13: =VLOOKUP($D13,specs!$K$5:$L$19,2)*IF($E$1="m",$D14,($D14*0.3048))/1000 -> 0
C14: span length,m | D14: 0 | E14: 0 | F14: =VLOOKUP($D15,specs!$D$5:$H$17,4)/F15*1.03*$E15+F17 -> 0 | G14: =VLOOKUP($D15,specs!$D$5:$H$17,4)/G15*1.03*$E15+G17 -> 0 | H14: =VLOOKUP($D15,specs!$D$5:$H$17,4)/H15*1.03*$E15+H17 -> 0 | I14: =VLOOKUP($D15,specs!$D$5:$H$17,4)/I15*1.03*$E15+I17 -> 0 | J14: =VLOOKUP($D15,specs!$D$5:$H$17,4)/J15*1.03*$E15+J17 -> 0 | K14: =VLOOKUP($D15,specs!$D$5:$H$17,4)/K15*1.03*$E15+K17 -> 0 | L14: =VLOOKUP($D15,specs!$D$5:$H$17,4)/L15*1.03*$E15+L17 -> 0 | M14: =VLOOKUP($D15,specs!$D$5:$H$17,4)/M15*1.03*$E15+M17 -> 0 | N14: =VLOOKUP($D15,specs!$D$5:$H$17,4)/N15*1.03*$E15+N17 -> 0 | O14: =VLOOKUP($D15,specs!$D$5:$H$17,4)/O15*1.03*$E15+O17 -> 0
C15: amplifier | D15: load | E15: 0 | F15: =F18+F17*F16 -> 60 | G15: =G18+G17*G16 -> 60 | H15: 60 | I15: 60 | J15: 60 | K15: 60 | L15: 60 | M15: 60 | N15: 60 | O15: 60
C16: cable type | D16: cable | E16: 0 | F16: =VLOOKUP($D16,specs!$K$5:$L$19,2)*IF($E$1="m",$D17,($D17*0.3048))/1000 -> 0 | G16: =VLOOKUP($D16,specs!$K$5:$L$19,2)*IF($E$1="m",$D17,($D17*0.3048))/1000 -> 0 | H16: =VLOOKUP($D16,specs!$K$5:$L$19,2)*IF($E$1="m",$D17,($D17*0.3048))/1000 -> 0 | I16: =VLOOKUP($D16,specs!$K$5:$L$19,2)*IF($E$1="m",$D17,($D17*0.3048))/1000 -> 0 | J16: =VLOOKUP($D16,specs!$K$5:$L$19,2)*IF($E$1="m",$D17,($D17*0.3048))/1000 -> 0 | K16: =VLOOKUP($D16,specs!$K$5:$L$19,2)*IF($E$1="m",$D17,($D17*0.3048))/1000 -> 0 | L16: =VLOOKUP($D16,specs!$K$5:$L$19,2)*IF($E$1="m",$D17,($D17*0.3048))/1000 -> 0 | M16: =VLOOKUP($D16,specs!$K$5:$L$19,2)*IF($E$1="m",$D17,($D17*0.3048))/1000 -> 0 | N16: =VLOOKUP($D16,specs!$K$5:$L$19,2)*IF($E$1="m",$D17,($D17*0.3048))/1000 -> 0 | O16: =VLOOKUP($D16,specs!$K$5:$L$19,2)*IF($E$1="m",$D17,($D17*0.3048))/1000 -> 0
C17: span length,m | D17: 0 | E17: 0 | F17: =VLOOKUP($D18,specs!$D$5:$H$17,4)/F18*1.03*$E18+F20 -> 0 | G17: =VLOOKUP($D18,specs!$D$5:$H$17,4)/G18*1.03*$E18+G20 -> 0 | H17: =VLOOKUP($D18,specs!$D$5:$H$17,4)/H18*1.03*$E18+H20 -> 0 | I17: =VLOOKUP($D18,specs!$D$5:$H$17,4)/I18*1.03*$E18+I20 -> 0 | J17: =VLOOKUP($D18,specs!$D$5:$H$17,4)/J18*1.03*$E18+J20 -> 0 | K17: =VLOOKUP($D18,specs!$D$5:$H$17,4)/K18*1.03*$E18+K20 -> 0 | L17: =VLOOKUP($D18,specs!$D$5:$H$17,4)/L18*1.03*$E18+L20 -> 0 | M17: =VLOOKUP($D18,specs!$D$5:$H$17,4)/M18*1.03*$E18+M20 -> 0 | N17: =VLOOKUP($D18,specs!$D$5:$H$17,4)/N18*1.03*$E18+N20 -> 0 | O17: =VLOOKUP($D18,specs!$D$5:$H$17,4)/O18*1.03*$E18+O20 -> 0
C18: amplifier | D18: load | E18: 0 | F18: =F21+F20*F19 -> 60 | G18: =G21+G20*G19 -> 60 | H18: 60 | I18: 60 | J18: 60 | K18: 60 | L18: 60 | M18: 60 | N18: 60 | O18: 60
C19: cable type | D19: cable | E19: 0 | F19: =VLOOKUP($D19,specs!$K$5:$L$19,2)*IF($E$1="m",$D20,($D20*0.3048))/1000 -> 0 | G19: =VLOOKUP($D19,specs!$K$5:$L$19,2)*IF($E$1="m",$D20,($D20*0.3048))/1000 -> 0 | H19: =VLOOKUP($D19,specs!$K$5:$L$19,2)*IF($E$1="m",$D20,($D20*0.3048))/1000 -> 0 | I19: =VLOOKUP($D19,specs!$K$5:$L$19,2)*IF($E$1="m",$D20,($D20*0.3048))/1000 -> 0 | J19: =VLOOKUP($D19,specs!$K$5:$L$19,2)*IF($E$1="m",$D20,($D20*0.3048))/1000 -> 0 | K19: =VLOOKUP($D19,specs!$K$5:$L$19,2)*IF($E$1="m",$D20,($D20*0.3048))/1000 -> 0 | L19: =VLOOKUP($D19,specs!$K$5:$L$19,2)*IF($E$1="m",$D20,($D20*0.3048))/1000 -> 0 | M19: =VLOOKUP($D19,specs!$K$5:$L$19,2)*IF($E$1="m",$D20,($D20*0.3048))/1000 -> 0 | N19: =VLOOKUP($D19,specs!$K$5:$L$19,2)*IF($E$1="m",$D20,($D20*0.3048))/1000 -> 0 | O19: =VLOOKUP($D19,specs!$K$5:$L$19,2)*IF($E$1="m",$D20,($D20*0.3048))/1000 -> 0
C20: span length,m | D20: 0 | E20: 0 | F20: =VLOOKUP($D21,specs!$D$5:$H$17,4)/F21*1.03*$E21+F23 -> 0 | G20: =VLOOKUP($D21,specs!$D$5:$H$17,4)/G21*1.03*$E21+G23 -> 0 | H20: =VLOOKUP($D21,specs!$D$5:$H$17,4)/H21*1.03*$E21+H23 -> 0 | I20: =VLOOKUP($D21,specs!$D$5:$H$17,4)/I21*1.03*$E21+I23 -> 0 | J20: =VLOOKUP($D21,specs!$D$5:$H$17,4)/J21*1.03*$E21+J23 -> 0 | K20: =VLOOKUP($D21,specs!$D$5:$H$17,4)/K21*1.03*$E21+K23 -> 0 | L20: =VLOOKUP($D21,specs!$D$5:$H$17,4)/L21*1.03*$E21+L23 -> 0 | M20: =VLOOKUP($D21,specs!$D$5:$H$17,4)/M21*1.03*$E21+M23 -> 0 | N20: =VLOOKUP($D21,specs!$D$5:$H$17,4)/N21*1.03*$E21+N23 -> 0 | O20: =VLOOKUP($D21,specs!$D$5:$H$17,4)/O21*1.03*$E21+O23 -> 0
C21: amplifier | D21: load | E21: 0 | F21: =B2 -> 60 | G21: =F21-(F3-$B$2) -> 60 | H21: 60 | I21: 60 | J21: 60 | K21: 60 | L21: 60 | M21: 60 | N21: 60 | O21: 60
F22: =IF(F21<0,1,0) -> 0 | G22: =IF(G21<0,1,0) -> 0 | H22: 0 | I22: 0 | J22: 0 | K22: 0 | L22: 0 | M22: 0 | N22: 0 | O22: 0
C24: User added Branch
M27: =O21 -> 60
F34: Main Branch Net32

Sheet Net31 (hidden)
B1: =SUM(F22:O22) -> 0 | D1: =IF(O21<'AUX2'!B6,1,0) -> 0 | E1: =+'AUX2'!J5 -> m
B2: =+'AUX2'!M11 -> 60 | C2: U start, V | D2: =+O5*1 -> 0 | F2: 1 | G2: 2 | H2: 3 | I2: 4 | J2: 5 | K2: 6 | L2: 7 | M2: 8 | N2: 9 | O2: iteration10
E3: mult. | F3: =F6+F5*F4 -> 60 | G3: =G6+G5*G4 -> 60 | H3: 60 | I3: 60 | J3: 60 | K3: 60 | L3: 60 | M3: 60 | N3: 60 | O3: 60
C4: cable type | D4: cable | E4: 0 | F4: =VLOOKUP($D4,specs!$K$5:$L$19,2)*IF($E$1="m",$D5,($D5*0.3048))/1000 -> 0 | G4: =VLOOKUP($D4,specs!$K$5:$L$19,2)*IF($E$1="m",$D5,($D5*0.3048))/1000 -> 0 | H4: =VLOOKUP($D4,specs!$K$5:$L$19,2)*IF($E$1="m",$D5,($D5*0.3048))/1000 -> 0 | I4: =VLOOKUP($D4,specs!$K$5:$L$19,2)*IF($E$1="m",$D5,($D5*0.3048))/1000 -> 0 | J4: =VLOOKUP($D4,specs!$K$5:$L$19,2)*IF($E$1="m",$D5,($D5*0.3048))/1000 -> 0 | K4: =VLOOKUP($D4,specs!$K$5:$L$19,2)*IF($E$1="m",$D5,($D5*0.3048))/1000 -> 0 | L4: =VLOOKUP($D4,specs!$K$5:$L$19,2)*IF($E$1="m",$D5,($D5*0.3048))/1000 -> 0 | M4: =VLOOKUP($D4,specs!$K$5:$L$19,2)*IF($E$1="m",$D5,($D5*0.3048))/1000 -> 0 | N4: =VLOOKUP($D4,specs!$K$5:$L$19,2)*IF($E$1="m",$D5,($D5*0.3048))/1000 -> 0 | O4: =VLOOKUP($D4,specs!$K$5:$L$19,2)*IF($E$1="m",$D5,($D5*0.3048))/1000 -> 0
C5: span length,m | D5: 0 | E5: 0 | F5: =VLOOKUP($D6,specs!$D$5:$H$17,4)/F6*1.03*$E6+F8 -> 0 | G5: =VLOOKUP($D6,specs!$D$5:$H$17,4)/G6*1.03*$E6+G8 -> 0 | H5: =VLOOKUP($D6,specs!$D$5:$H$17,4)/H6*1.03*$E6+H8 -> 0 | I5: =VLOOKUP($D6,specs!$D$5:$H$17,4)/I6*1.03*$E6+I8 -> 0 | J5: =VLOOKUP($D6,specs!$D$5:$H$17,4)/J6*1.03*$E6+J8 -> 0 | K5: =VLOOKUP($D6,specs!$D$5:$H$17,4)/K6*1.03*$E6+K8 -> 0 | L5: =VLOOKUP($D6,specs!$D$5:$H$17,4)/L6*1.03*$E6+L8 -> 0 | M5: =VLOOKUP($D6,specs!$D$5:$H$17,4)/M6*1.03*$E6+M8 -> 0 | N5: =VLOOKUP($D6,specs!$D$5:$H$17,4)/N6*1.03*$E6+N8 -> 0 | O5: =VLOOKUP($D6,specs!$D$5:$H$17,4)/O6*1.03*$E6+O8 -> 0
C6: amplifier | D6: load | E6: 0 | F6: =F9+F8*F7 -> 60 | G6: =G9+G8*G7 -> 60 | H6: 60 | I6: 60 | J6: 60 | K6: 60 | L6: 60 | M6: 60 | N6: 60 | O6: 60
C7: cable type | D7: cable | E7: 0 | F7: =VLOOKUP($D7,specs!$K$5:$L$19,2)*IF($E$1="m",$D8,($D8*0.3048))/1000 -> 0 | G7: =VLOOKUP($D7,specs!$K$5:$L$19,2)*IF($E$1="m",$D8,($D8*0.3048))/1000 -> 0 | H7: =VLOOKUP($D7,specs!$K$5:$L$19,2)*IF($E$1="m",$D8,($D8*0.3048))/1000 -> 0 | I7: =VLOOKUP($D7,specs!$K$5:$L$19,2)*IF($E$1="m",$D8,($D8*0.3048))/1000 -> 0 | J7: =VLOOKUP($D7,specs!$K$5:$L$19,2)*IF($E$1="m",$D8,($D8*0.3048))/1000 -> 0 | K7: =VLOOKUP($D7,specs!$K$5:$L$19,2)*IF($E$1="m",$D8,($D8*0.3048))/1000 -> 0 | L7: =VLOOKUP($D7,specs!$K$5:$L$19,2)*IF($E$1="m",$D8,($D8*0.3048))/1000 -> 0 | M7: =VLOOKUP($D7,specs!$K$5:$L$19,2)*IF($E$1="m",$D8,($D8*0.3048))/1000 -> 0 | N7: =VLOOKUP($D7,specs!$K$5:$L$19,2)*IF($E$1="m",$D8,($D8*0.3048))/1000 -> 0 | O7: =VLOOKUP($D7,specs!$K$5:$L$19,2)*IF($E$1="m",$D8,($D8*0.3048))/1000 -> 0
C8: span length,m | D8: 0 | E8: 0 | F8: =VLOOKUP($D9,specs!$D$5:$H$17,4)/F9*1.03*$E9+F11 -> 0 | G8: =VLOOKUP($D9,specs!$D$5:$H$17,4)/G9*1.03*$E9+G11 -> 0 | H8: =VLOOKUP($D9,specs!$D$5:$H$17,4)/H9*1.03*$E9+H11 -> 0 | I8: =VLOOKUP($D9,specs!$D$5:$H$17,4)/I9*1.03*$E9+I11 -> 0 | J8: =VLOOKUP($D9,specs!$D$5:$H$17,4)/J9*1.03*$E9+J11 -> 0 | K8: =VLOOKUP($D9,specs!$D$5:$H$17,4)/K9*1.03*$E9+K11 -> 0 | L8: =VLOOKUP($D9,specs!$D$5:$H$17,4)/L9*1.03*$E9+L11 -> 0 | M8: =VLOOKUP($D9,specs!$D$5:$H$17,4)/M9*1.03*$E9+M11 -> 0 | N8: =VLOOKUP($D9,specs!$D$5:$H$17,4)/N9*1.03*$E9+N11 -> 0 | O8: =VLOOKUP($D9,specs!$D$5:$H$17,4)/O9*1.03*$E9+O11 -> 0
C9: amplifier | D9: load | E9: 0 | F9: =F12+F11*F10 -> 60 | G9: =G12+G11*G10 -> 60 | H9: 60 | I9: 60 | J9: 60 | K9: 60 | L9: 60 | M9: 60 | N9: 60 | O9: 60
C10: cable type | D10: cable | E10: 0 | F10: =VLOOKUP($D10,specs!$K$5:$L$19,2)*IF($E$1="m",$D11,($D11*0.3048))/1000 -> 0 | G10: =VLOOKUP($D10,specs!$K$5:$L$19,2)*IF($E$1="m",$D11,($D11*0.3048))/1000 -> 0 | H10: =VLOOKUP($D10,specs!$K$5:$L$19,2)*IF($E$1="m",$D11,($D11*0.3048))/1000 -> 0 | I10: =VLOOKUP($D10,specs!$K$5:$L$19,2)*IF($E$1="m",$D11,($D11*0.3048))/1000 -> 0 | J10: =VLOOKUP($D10,specs!$K$5:$L$19,2)*IF($E$1="m",$D11,($D11*0.3048))/1000 -> 0 | K10: =VLOOKUP($D10,specs!$K$5:$L$19,2)*IF($E$1="m",$D11,($D11*0.3048))/1000 -> 0 | L10: =VLOOKUP($D10,specs!$K$5:$L$19,2)*IF($E$1="m",$D11,($D11*0.3048))/1000 -> 0 | M10: =VLOOKUP($D10,specs!$K$5:$L$19,2)*IF($E$1="m",$D11,($D11*0.3048))/1000 -> 0 | N10: =VLOOKUP($D10,specs!$K$5:$L$19,2)*IF($E$1="m",$D11,($D11*0.3048))/1000 -> 0 | O10: =VLOOKUP($D10,specs!$K$5:$L$19,2)*IF($E$1="m",$D11,($D11*0.3048))/1000 -> 0
C11: span length,m | D11: 0 | E11: 0 | F11: =VLOOKUP($D12,specs!$D$5:$H$17,4)/F12*1.03*$E12+F14 -> 0 | G11: =VLOOKUP($D12,specs!$D$5:$H$17,4)/G12*1.03*$E12+G14 -> 0 | H11: =VLOOKUP($D12,specs!$D$5:$H$17,4)/H12*1.03*$E12+H14 -> 0 | I11: =VLOOKUP($D12,specs!$D$5:$H$17,4)/I12*1.03*$E12+I14 -> 0 | J11: =VLOOKUP($D12,specs!$D$5:$H$17,4)/J12*1.03*$E12+J14 -> 0 | K11: =VLOOKUP($D12,specs!$D$5:$H$17,4)/K12*1.03*$E12+K14 -> 0 | L11: =VLOOKUP($D12,specs!$D$5:$H$17,4)/L12*1.03*$E12+L14 -> 0 | M11: =VLOOKUP($D12,specs!$D$5:$H$17,4)/M12*1.03*$E12+M14 -> 0 | N11: =VLOOKUP($D12,specs!$D$5:$H$17,4)/N12*1.03*$E12+N14 -> 0 | O11: =VLOOKUP($D12,specs!$D$5:$H$17,4)/O12*1.03*$E12+O14 -> 0
C12: amplifier | D12: load | E12: 0 | F12: =F15+F14*F13 -> 60 | G12: =G15+G14*G13 -> 60 | H12: 60 | I12: 60 | J12: 60 | K12: 60 | L12: 60 | M12: 60 | N12: 60 | O12: 60
C13: cable type | D13: cable | E13: 0 | F13: =VLOOKUP($D13,specs!$K$5:$L$19,2)*IF($E$1="m",$D14,($D14*0.3048))/1000 -> 0 | G13: =VLOOKUP($D13,specs!$K$5:$L$19,2)*IF($E$1="m",$D14,($D14*0.3048))/1000 -> 0 | H13: =VLOOKUP($D13,specs!$K$5:$L$19,2)*IF($E$1="m",$D14,($D14*0.3048))/1000 -> 0 | I13: =VLOOKUP($D13,specs!$K$5:$L$19,2)*IF($E$1="m",$D14,($D14*0.3048))/1000 -> 0 | J13: =VLOOKUP($D13,specs!$K$5:$L$19,2)*IF($E$1="m",$D14,($D14*0.3048))/1000 -> 0 | K13: =VLOOKUP($D13,specs!$K$5:$L$19,2)*IF($E$1="m",$D14,($D14*0.3048))/1000 -> 0 | L13: =VLOOKUP($D13,specs!$K$5:$L$19,2)*IF($E$1="m",$D14,($D14*0.3048))/1000 -> 0 | M13: =VLOOKUP($D13,specs!$K$5:$L$19,2)*IF($E$1="m",$D14,($D14*0.3048))/1000 -> 0 | N13: =VLOOKUP($D13,specs!$K$5:$L$19,2)*IF($E$1="m",$D14,($D14*0.3048))/1000 -> 0 | O13: =VLOOKUP($D13,specs!$K$5:$L$19,2)*IF($E$1="m",$D14,($D14*0.3048))/1000 -> 0
C14: span length,m | D14: 0 | E14: 0 | F14: =VLOOKUP($D15,specs!$D$5:$H$17,4)/F15*1.03*$E15+F17 -> 0 | G14: =VLOOKUP($D15,specs!$D$5:$H$17,4)/G15*1.03*$E15+G17 -> 0 | H14: =VLOOKUP($D15,specs!$D$5:$H$17,4)/H15*1.03*$E15+H17 -> 0 | I14: =VLOOKUP($D15,specs!$D$5:$H$17,4)/I15*1.03*$E15+I17 -> 0 | J14: =VLOOKUP($D15,specs!$D$5:$H$17,4)/J15*1.03*$E15+J17 -> 0 | K14: =VLOOKUP($D15,specs!$D$5:$H$17,4)/K15*1.03*$E15+K17 -> 0 | L14: =VLOOKUP($D15,specs!$D$5:$H$17,4)/L15*1.03*$E15+L17 -> 0 | M14: =VLOOKUP($D15,specs!$D$5:$H$17,4)/M15*1.03*$E15+M17 -> 0 | N14: =VLOOKUP($D15,specs!$D$5:$H$17,4)/N15*1.03*$E15+N17 -> 0 | O14: =VLOOKUP($D15,specs!$D$5:$H$17,4)/O15*1.03*$E15+O17 -> 0
C15: amplifier | D15: load | E15: 0 | F15: =F18+F17*F16 -> 60 | G15: =G18+G17*G16 -> 60 | H15: 60 | I15: 60 | J15: 60 | K15: 60 | L15: 60 | M15: 60 | N15: 60 | O15: 60
C16: cable type | D16: cable | E16: 0 | F16: =VLOOKUP($D16,specs!$K$5:$L$19,2)*IF($E$1="m",$D17,($D17*0.3048))/1000 -> 0 | G16: =VLOOKUP($D16,specs!$K$5:$L$19,2)*IF($E$1="m",$D17,($D17*0.3048))/1000 -> 0 | H16: =VLOOKUP($D16,specs!$K$5:$L$19,2)*IF($E$1="m",$D17,($D17*0.3048))/1000 -> 0 | I16: =VLOOKUP($D16,specs!$K$5:$L$19,2)*IF($E$1="m",$D17,($D17*0.3048))/1000 -> 0 | J16: =VLOOKUP($D16,specs!$K$5:$L$19,2)*IF($E$1="m",$D17,($D17*0.3048))/1000 -> 0 | K16: =VLOOKUP($D16,specs!$K$5:$L$19,2)*IF($E$1="m",$D17,($D17*0.3048))/1000 -> 0 | L16: =VLOOKUP($D16,specs!$K$5:$L$19,2)*IF($E$1="m",$D17,($D17*0.3048))/1000 -> 0 | M16: =VLOOKUP($D16,specs!$K$5:$L$19,2)*IF($E$1="m",$D17,($D17*0.3048))/1000 -> 0 | N16: =VLOOKUP($D16,specs!$K$5:$L$19,2)*IF($E$1="m",$D17,($D17*0.3048))/1000 -> 0 | O16: =VLOOKUP($D16,specs!$K$5:$L$19,2)*IF($E$1="m",$D17,($D17*0.3048))/1000 -> 0
C17: span length,m | D17: 0 | E17: 0 | F17: =VLOOKUP($D18,specs!$D$5:$H$17,4)/F18*1.03*$E18+F20 -> 0 | G17: =VLOOKUP($D18,specs!$D$5:$H$17,4)/G18*1.03*$E18+G20 -> 0 | H17: =VLOOKUP($D18,specs!$D$5:$H$17,4)/H18*1.03*$E18+H20 -> 0 | I17: =VLOOKUP($D18,specs!$D$5:$H$17,4)/I18*1.03*$E18+I20 -> 0 | J17: =VLOOKUP($D18,specs!$D$5:$H$17,4)/J18*1.03*$E18+J20 -> 0 | K17: =VLOOKUP($D18,specs!$D$5:$H$17,4)/K18*1.03*$E18+K20 -> 0 | L17: =VLOOKUP($D18,specs!$D$5:$H$17,4)/L18*1.03*$E18+L20 -> 0 | M17: =VLOOKUP($D18,specs!$D$5:$H$17,4)/M18*1.03*$E18+M20 -> 0 | N17: =VLOOKUP($D18,specs!$D$5:$H$17,4)/N18*1.03*$E18+N20 -> 0 | O17: =VLOOKUP($D18,specs!$D$5:$H$17,4)/O18*1.03*$E18+O20 -> 0
C18: amplifier | D18: load | E18: 0 | F18: =F21+F20*F19 -> 60 | G18: =G21+G20*G19 -> 60 | H18: 60 | I18: 60 | J18: 60 | K18: 60 | L18: 60 | M18: 60 | N18: 60 | O18: 60
C19: cable type | D19: cable | E19: 0 | F19: =VLOOKUP($D19,specs!$K$5:$L$19,2)*IF($E$1="m",$D20,($D20*0.3048))/1000 -> 0 | G19: =VLOOKUP($D19,specs!$K$5:$L$19,2)*IF($E$1="m",$D20,($D20*0.3048))/1000 -> 0 | H19: =VLOOKUP($D19,specs!$K$5:$L$19,2)*IF($E$1="m",$D20,($D20*0.3048))/1000 -> 0 | I19: =VLOOKUP($D19,specs!$K$5:$L$19,2)*IF($E$1="m",$D20,($D20*0.3048))/1000 -> 0 | J19: =VLOOKUP($D19,specs!$K$5:$L$19,2)*IF($E$1="m",$D20,($D20*0.3048))/1000 -> 0 | K19: =VLOOKUP($D19,specs!$K$5:$L$19,2)*IF($E$1="m",$D20,($D20*0.3048))/1000 -> 0 | L19: =VLOOKUP($D19,specs!$K$5:$L$19,2)*IF($E$1="m",$D20,($D20*0.3048))/1000 -> 0 | M19: =VLOOKUP($D19,specs!$K$5:$L$19,2)*IF($E$1="m",$D20,($D20*0.3048))/1000 -> 0 | N19: =VLOOKUP($D19,specs!$K$5:$L$19,2)*IF($E$1="m",$D20,($D20*0.3048))/1000 -> 0 | O19: =VLOOKUP($D19,specs!$K$5:$L$19,2)*IF($E$1="m",$D20,($D20*0.3048))/1000 -> 0
C20: span length,m | D20: 0 | E20: 0 | F20: =VLOOKUP($D21,specs!$D$5:$H$17,4)/F21*1.03*$E21+F23 -> 0 | G20: =VLOOKUP($D21,specs!$D$5:$H$17,4)/G21*1.03*$E21+G23 -> 0 | H20: =VLOOKUP($D21,specs!$D$5:$H$17,4)/H21*1.03*$E21+H23 -> 0 | I20: =VLOOKUP($D21,specs!$D$5:$H$17,4)/I21*1.03*$E21+I23 -> 0 | J20: =VLOOKUP($D21,specs!$D$5:$H$17,4)/J21*1.03*$E21+J23 -> 0 | K20: =VLOOKUP($D21,specs!$D$5:$H$17,4)/K21*1.03*$E21+K23 -> 0 | L20: =VLOOKUP($D21,specs!$D$5:$H$17,4)/L21*1.03*$E21+L23 -> 0 | M20: =VLOOKUP($D21,specs!$D$5:$H$17,4)/M21*1.03*$E21+M23 -> 0 | N20: =VLOOKUP($D21,specs!$D$5:$H$17,4)/N21*1.03*$E21+N23 -> 0 | O20: =VLOOKUP($D21,specs!$D$5:$H$17,4)/O21*1.03*$E21+O23 -> 0
C21: amplifier | D21: load | E21: 0 | F21: =B2 -> 60 | G21: =F21-(F3-$B$2) -> 60 | H21: 60 | I21: 60 | J21: 60 | K21: 60 | L21: 60 | M21: 60 | N21: 60 | O21: 60
F22: =IF(F21<0,1,0) -> 0 | G22: =IF(G21<0,1,0) -> 0 | H22: 0 | I22: 0 | J22: 0 | K22: 0 | L22: 0 | M22: 0 | N22: 0 | O22: 0
C24: User added Branch
M27: =O21 -> 60
F34: Main Branch Net31

Sheet Net22 (hidden)
B1: =SUM(F22:O22) -> 0 | D1: =IF(O21<'AUX2'!B6,1,0) -> 0 | E1: =+'AUX2'!J5 -> m
B2: =+'AUX2'!M10 -> 60 | C2: U start, V | D2: =+O5*1 -> 0 | F2: 1 | G2: 2 | H2: 3 | I2: 4 | J2: 5 | K2: 6 | L2: 7 | M2: 8 | N2: 9 | O2: iteration10
E3: mult. | F3: =F6+F5*F4 -> 60 | G3: =G6+G5*G4 -> 60 | H3: 60 | I3: 60 | J3: 60 | K3: 60 | L3: 60 | M3: 60 | N3: 60 | O3: 60
C4: cable type | D4: cable | E4: 0 | F4: =VLOOKUP($D4,specs!$K$5:$L$19,2)*IF($E$1="m",$D5,($D5*0.3048))/1000 -> 0 | G4: =VLOOKUP($D4,specs!$K$5:$L$19,2)*IF($E$1="m",$D5,($D5*0.3048))/1000 -> 0 | H4: =VLOOKUP($D4,specs!$K$5:$L$19,2)*IF($E$1="m",$D5,($D5*0.3048))/1000 -> 0 | I4: =VLOOKUP($D4,specs!$K$5:$L$19,2)*IF($E$1="m",$D5,($D5*0.3048))/1000 -> 0 | J4: =VLOOKUP($D4,specs!$K$5:$L$19,2)*IF($E$1="m",$D5,($D5*0.3048))/1000 -> 0 | K4: =VLOOKUP($D4,specs!$K$5:$L$19,2)*IF($E$1="m",$D5,($D5*0.3048))/1000 -> 0 | L4: =VLOOKUP($D4,specs!$K$5:$L$19,2)*IF($E$1="m",$D5,($D5*0.3048))/1000 -> 0 | M4: =VLOOKUP($D4,specs!$K$5:$L$19,2)*IF($E$1="m",$D5,($D5*0.3048))/1000 -> 0 | N4: =VLOOKUP($D4,specs!$K$5:$L$19,2)*IF($E$1="m",$D5,($D5*0.3048))/1000 -> 0 | O4: =VLOOKUP($D4,specs!$K$5:$L$19,2)*IF($E$1="m",$D5,($D5*0.3048))/1000 -> 0
C5: span length,m | D5: 0 | E5: 0 | F5: =VLOOKUP($D6,specs!$D$5:$H$17,4)/F6*1.03*$E6+F8 -> 0 | G5: =VLOOKUP($D6,specs!$D$5:$H$17,4)/G6*1.03*$E6+G8 -> 0 | H5: =VLOOKUP($D6,specs!$D$5:$H$17,4)/H6*1.03*$E6+H8 -> 0 | I5: =VLOOKUP($D6,specs!$D$5:$H$17,4)/I6*1.03*$E6+I8 -> 0 | J5: =VLOOKUP($D6,specs!$D$5:$H$17,4)/J6*1.03*$E6+J8 -> 0 | K5: =VLOOKUP($D6,specs!$D$5:$H$17,4)/K6*1.03*$E6+K8 -> 0 | L5: =VLOOKUP($D6,specs!$D$5:$H$17,4)/L6*1.03*$E6+L8 -> 0 | M5: =VLOOKUP($D6,specs!$D$5:$H$17,4)/M6*1.03*$E6+M8 -> 0 | N5: =VLOOKUP($D6,specs!$D$5:$H$17,4)/N6*1.03*$E6+N8 -> 0 | O5: =VLOOKUP($D6,specs!$D$5:$H$17,4)/O6*1.03*$E6+O8 -> 0
C6: amplifier | D6: load | E6: 0 | F6: =F9+F8*F7 -> 60 | G6: =G9+G8*G7 -> 60 | H6: 60 | I6: 60 | J6: 60 | K6: 60 | L6: 60 | M6: 60 | N6: 60 | O6: 60
C7: cable type | D7: cable | E7: 0 | F7: =VLOOKUP($D7,specs!$K$5:$L$19,2)*IF($E$1="m",$D8,($D8*0.3048))/1000 -> 0 | G7: =VLOOKUP($D7,specs!$K$5:$L$19,2)*IF($E$1="m",$D8,($D8*0.3048))/1000 -> 0 | H7: =VLOOKUP($D7,specs!$K$5:$L$19,2)*IF($E$1="m",$D8,($D8*0.3048))/1000 -> 0 | I7: =VLOOKUP($D7,specs!$K$5:$L$19,2)*IF($E$1="m",$D8,($D8*0.3048))/1000 -> 0 | J7: =VLOOKUP($D7,specs!$K$5:$L$19,2)*IF($E$1="m",$D8,($D8*0.3048))/1000 -> 0 | K7: =VLOOKUP($D7,specs!$K$5:$L$19,2)*IF($E$1="m",$D8,($D8*0.3048))/1000 -> 0 | L7: =VLOOKUP($D7,specs!$K$5:$L$19,2)*IF($E$1="m",$D8,($D8*0.3048))/1000 -> 0 | M7: =VLOOKUP($D7,specs!$K$5:$L$19,2)*IF($E$1="m",$D8,($D8*0.3048))/1000 -> 0 | N7: =VLOOKUP($D7,specs!$K$5:$L$19,2)*IF($E$1="m",$D8,($D8*0.3048))/1000 -> 0 | O7: =VLOOKUP($D7,specs!$K$5:$L$19,2)*IF($E$1="m",$D8,($D8*0.3048))/1000 -> 0
C8: span length,m | D8: 0 | E8: 0 | F8: =VLOOKUP($D9,specs!$D$5:$H$17,4)/F9*1.03*$E9+F11 -> 0 | G8: =VLOOKUP($D9,specs!$D$5:$H$17,4)/G9*1.03*$E9+G11 -> 0 | H8: =VLOOKUP($D9,specs!$D$5:$H$17,4)/H9*1.03*$E9+H11 -> 0 | I8: =VLOOKUP($D9,specs!$D$5:$H$17,4)/I9*1.03*$E9+I11 -> 0 | J8: =VLOOKUP($D9,specs!$D$5:$H$17,4)/J9*1.03*$E9+J11 -> 0 | K8: =VLOOKUP($D9,specs!$D$5:$H$17,4)/K9*1.03*$E9+K11 -> 0 | L8: =VLOOKUP($D9,specs!$D$5:$H$17,4)/L9*1.03*$E9+L11 -> 0 | M8: =VLOOKUP($D9,specs!$D$5:$H$17,4)/M9*1.03*$E9+M11 -> 0 | N8: =VLOOKUP($D9,specs!$D$5:$H$17,4)/N9*1.03*$E9+N11 -> 0 | O8: =VLOOKUP($D9,specs!$D$5:$H$17,4)/O9*1.03*$E9+O11 -> 0
C9: amplifier | D9: load | E9: 0 | F9: =F12+F11*F10 -> 60 | G9: =G12+G11*G10 -> 60 | H9: 60 | I9: 60 | J9: 60 | K9: 60 | L9: 60 | M9: 60 | N9: 60 | O9: 60
C10: cable type | D10: cable | E10: 0 | F10: =VLOOKUP($D10,specs!$K$5:$L$19,2)*IF($E$1="m",$D11,($D11*0.3048))/1000 -> 0 | G10: =VLOOKUP($D10,specs!$K$5:$L$19,2)*IF($E$1="m",$D11,($D11*0.3048))/1000 -> 0 | H10: =VLOOKUP($D10,specs!$K$5:$L$19,2)*IF($E$1="m",$D11,($D11*0.3048))/1000 -> 0 | I10: =VLOOKUP($D10,specs!$K$5:$L$19,2)*IF($E$1="m",$D11,($D11*0.3048))/1000 -> 0 | J10: =VLOOKUP($D10,specs!$K$5:$L$19,2)*IF($E$1="m",$D11,($D11*0.3048))/1000 -> 0 | K10: =VLOOKUP($D10,specs!$K$5:$L$19,2)*IF($E$1="m",$D11,($D11*0.3048))/1000 -> 0 | L10: =VLOOKUP($D10,specs!$K$5:$L$19,2)*IF($E$1="m",$D11,($D11*0.3048))/1000 -> 0 | M10: =VLOOKUP($D10,specs!$K$5:$L$19,2)*IF($E$1="m",$D11,($D11*0.3048))/1000 -> 0 | N10: =VLOOKUP($D10,specs!$K$5:$L$19,2)*IF($E$1="m",$D11,($D11*0.3048))/1000 -> 0 | O10: =VLOOKUP($D10,specs!$K$5:$L$19,2)*IF($E$1="m",$D11,($D11*0.3048))/1000 -> 0
C11: span length,m | D11: 0 | E11: 0 | F11: =VLOOKUP($D12,specs!$D$5:$H$17,4)/F12*1.03*$E12+F14 -> 0 | G11: =VLOOKUP($D12,specs!$D$5:$H$17,4)/G12*1.03*$E12+G14 -> 0 | H11: =VLOOKUP($D12,specs!$D$5:$H$17,4)/H12*1.03*$E12+H14 -> 0 | I11: =VLOOKUP($D12,specs!$D$5:$H$17,4)/I12*1.03*$E12+I14 -> 0 | J11: =VLOOKUP($D12,specs!$D$5:$H$17,4)/J12*1.03*$E12+J14 -> 0 | K11: =VLOOKUP($D12,specs!$D$5:$H$17,4)/K12*1.03*$E12+K14 -> 0 | L11: =VLOOKUP($D12,specs!$D$5:$H$17,4)/L12*1.03*$E12+L14 -> 0 | M11: =VLOOKUP($D12,specs!$D$5:$H$17,4)/M12*1.03*$E12+M14 -> 0 | N11: =VLOOKUP($D12,specs!$D$5:$H$17,4)/N12*1.03*$E12+N14 -> 0 | O11: =VLOOKUP($D12,specs!$D$5:$H$17,4)/O12*1.03*$E12+O14 -> 0
C12: amplifier | D12: load | E12: 0 | F12: =F15+F14*F13 -> 60 | G12: =G15+G14*G13 -> 60 | H12: 60 | I12: 60 | J12: 60 | K12: 60 | L12: 60 | M12: 60 | N12: 60 | O12: 60
C13: cable type | D13: cable | E13: 0 | F13: =VLOOKUP($D13,specs!$K$5:$L$19,2)*IF($E$1="m",$D14,($D14*0.3048))/1000 -> 0 | G13: =VLOOKUP($D13,specs!$K$5:$L$19,2)*IF($E$1="m",$D14,($D14*0.3048))/1000 -> 0 | H13: =VLOOKUP($D13,specs!$K$5:$L$19,2)*IF($E$1="m",$D14,($D14*0.3048))/1000 -> 0 | I13: =VLOOKUP($D13,specs!$K$5:$L$19,2)*IF($E$1="m",$D14,($D14*0.3048))/1000 -> 0 | J13: =VLOOKUP($D13,specs!$K$5:$L$19,2)*IF($E$1="m",$D14,($D14*0.3048))/1000 -> 0 | K13: =VLOOKUP($D13,specs!$K$5:$L$19,2)*IF($E$1="m",$D14,($D14*0.3048))/1000 -> 0 | L13: =VLOOKUP($D13,specs!$K$5:$L$19,2)*IF($E$1="m",$D14,($D14*0.3048))/1000 -> 0 | M13: =VLOOKUP($D13,specs!$K$5:$L$19,2)*IF($E$1="m",$D14,($D14*0.3048))/1000 -> 0 | N13: =VLOOKUP($D13,specs!$K$5:$L$19,2)*IF($E$1="m",$D14,($D14*0.3048))/1000 -> 0 | O13: =VLOOKUP($D13,specs!$K$5:$L$19,2)*IF($E$1="m",$D14,($D14*0.3048))/1000 -> 0
C14: span length,m | D14: 0 | E14: 0 | F14: =VLOOKUP($D15,specs!$D$5:$H$17,4)/F15*1.03*$E15+F17 -> 0 | G14: =VLOOKUP($D15,specs!$D$5:$H$17,4)/G15*1.03*$E15+G17 -> 0 | H14: =VLOOKUP($D15,specs!$D$5:$H$17,4)/H15*1.03*$E15+H17 -> 0 | I14: =VLOOKUP($D15,specs!$D$5:$H$17,4)/I15*1.03*$E15+I17 -> 0 | J14: =VLOOKUP($D15,specs!$D$5:$H$17,4)/J15*1.03*$E15+J17 -> 0 | K14: =VLOOKUP($D15,specs!$D$5:$H$17,4)/K15*1.03*$E15+K17 -> 0 | L14: =VLOOKUP($D15,specs!$D$5:$H$17,4)/L15*1.03*$E15+L17 -> 0 | M14: =VLOOKUP($D15,specs!$D$5:$H$17,4)/M15*1.03*$E15+M17 -> 0 | N14: =VLOOKUP($D15,specs!$D$5:$H$17,4)/N15*1.03*$E15+N17 -> 0 | O14: =VLOOKUP($D15,specs!$D$5:$H$17,4)/O15*1.03*$E15+O17 -> 0
C15: amplifier | D15: load | E15: 0 | F15: =F18+F17*F16 -> 60 | G15: =G18+G17*G16 -> 60 | H15: 60 | I15: 60 | J15: 60 | K15: 60 | L15: 60 | M15: 60 | N15: 60 | O15: 60
C16: cable type | D16: cable | E16: 0 | F16: =VLOOKUP($D16,specs!$K$5:$L$19,2)*IF($E$1="m",$D17,($D17*0.3048))/1000 -> 0 | G16: =VLOOKUP($D16,specs!$K$5:$L$19,2)*IF($E$1="m",$D17,($D17*0.3048))/1000 -> 0 | H16: =VLOOKUP($D16,specs!$K$5:$L$19,2)*IF($E$1="m",$D17,($D17*0.3048))/1000 -> 0 | I16: =VLOOKUP($D16,specs!$K$5:$L$19,2)*IF($E$1="m",$D17,($D17*0.3048))/1000 -> 0 | J16: =VLOOKUP($D16,specs!$K$5:$L$19,2)*IF($E$1="m",$D17,($D17*0.3048))/1000 -> 0 | K16: =VLOOKUP($D16,specs!$K$5:$L$19,2)*IF($E$1="m",$D17,($D17*0.3048))/1000 -> 0 | L16: =VLOOKUP($D16,specs!$K$5:$L$19,2)*IF($E$1="m",$D17,($D17*0.3048))/1000 -> 0 | M16: =VLOOKUP($D16,specs!$K$5:$L$19,2)*IF($E$1="m",$D17,($D17*0.3048))/1000 -> 0 | N16: =VLOOKUP($D16,specs!$K$5:$L$19,2)*IF($E$1="m",$D17,($D17*0.3048))/1000 -> 0 | O16: =VLOOKUP($D16,specs!$K$5:$L$19,2)*IF($E$1="m",$D17,($D17*0.3048))/1000 -> 0
C17: span length,m | D17: 0 | E17: 0 | F17: =VLOOKUP($D18,specs!$D$5:$H$17,4)/F18*1.03*$E18+F20 -> 0 | G17: =VLOOKUP($D18,specs!$D$5:$H$17,4)/G18*1.03*$E18+G20 -> 0 | H17: =VLOOKUP($D18,specs!$D$5:$H$17,4)/H18*1.03*$E18+H20 -> 0 | I17: =VLOOKUP($D18,specs!$D$5:$H$17,4)/I18*1.03*$E18+I20 -> 0 | J17: =VLOOKUP($D18,specs!$D$5:$H$17,4)/J18*1.03*$E18+J20 -> 0 | K17: =VLOOKUP($D18,specs!$D$5:$H$17,4)/K18*1.03*$E18+K20 -> 0 | L17: =VLOOKUP($D18,specs!$D$5:$H$17,4)/L18*1.03*$E18+L20 -> 0 | M17: =VLOOKUP($D18,specs!$D$5:$H$17,4)/M18*1.03*$E18+M20 -> 0 | N17: =VLOOKUP($D18,specs!$D$5:$H$17,4)/N18*1.03*$E18+N20 -> 0 | O17: =VLOOKUP($D18,specs!$D$5:$H$17,4)/O18*1.03*$E18+O20 -> 0
C18: amplifier | D18: load | E18: 0 | F18: =F21+F20*F19 -> 60 | G18: =G21+G20*G19 -> 60 | H18: 60 | I18: 60 | J18: 60 | K18: 60 | L18: 60 | M18: 60 | N18: 60 | O18: 60
C19: cable type | D19: cable | E19: 0 | F19: =VLOOKUP($D19,specs!$K$5:$L$19,2)*IF($E$1="m",$D20,($D20*0.3048))/1000 -> 0 | G19: =VLOOKUP($D19,specs!$K$5:$L$19,2)*IF($E$1="m",$D20,($D20*0.3048))/1000 -> 0 | H19: =VLOOKUP($D19,specs!$K$5:$L$19,2)*IF($E$1="m",$D20,($D20*0.3048))/1000 -> 0 | I19: =VLOOKUP($D19,specs!$K$5:$L$19,2)*IF($E$1="m",$D20,($D20*0.3048))/1000 -> 0 | J19: =VLOOKUP($D19,specs!$K$5:$L$19,2)*IF($E$1="m",$D20,($D20*0.3048))/1000 -> 0 | K19: =VLOOKUP($D19,specs!$K$5:$L$19,2)*IF($E$1="m",$D20,($D20*0.3048))/1000 -> 0 | L19: =VLOOKUP($D19,specs!$K$5:$L$19,2)*IF($E$1="m",$D20,($D20*0.3048))/1000 -> 0 | M19: =VLOOKUP($D19,specs!$K$5:$L$19,2)*IF($E$1="m",$D20,($D20*0.3048))/1000 -> 0 | N19: =VLOOKUP($D19,specs!$K$5:$L$19,2)*IF($E$1="m",$D20,($D20*0.3048))/1000 -> 0 | O19: =VLOOKUP($D19,specs!$K$5:$L$19,2)*IF($E$1="m",$D20,($D20*0.3048))/1000 -> 0
C20: span length,m | D20: 0 | E20: 0 | F20: =VLOOKUP($D21,specs!$D$5:$H$17,4)/F21*1.03*$E21+F23 -> 0 | G20: =VLOOKUP($D21,specs!$D$5:$H$17,4)/G21*1.03*$E21+G23 -> 0 | H20: =VLOOKUP($D21,specs!$D$5:$H$17,4)/H21*1.03*$E21+H23 -> 0 | I20: =VLOOKUP($D21,specs!$D$5:$H$17,4)/I21*1.03*$E21+I23 -> 0 | J20: =VLOOKUP($D21,specs!$D$5:$H$17,4)/J21*1.03*$E21+J23 -> 0 | K20: =VLOOKUP($D21,specs!$D$5:$H$17,4)/K21*1.03*$E21+K23 -> 0 | L20: =VLOOKUP($D21,specs!$D$5:$H$17,4)/L21*1.03*$E21+L23 -> 0 | M20: =VLOOKUP($D21,specs!$D$5:$H$17,4)/M21*1.03*$E21+M23 -> 0 | N20: =VLOOKUP($D21,specs!$D$5:$H$17,4)/N21*1.03*$E21+N23 -> 0 | O20: =VLOOKUP($D21,specs!$D$5:$H$17,4)/O21*1.03*$E21+O23 -> 0
C21: amplifier | D21: load | E21: 0 | F21: =B2 -> 60 | G21: =F21-(F3-$B$2) -> 60 | H21: 60 | I21: 60 | J21: 60 | K21: 60 | L21: 60 | M21: 60 | N21: 60 | O21: 60
F22: =IF(F21<0,1,0) -> 0 | G22: =IF(G21<0,1,0) -> 0 | H22: 0 | I22: 0 | J22: 0 | K22: 0 | L22: 0 | M22: 0 | N22: 0 | O22: 0
C24: User added Branch
M27: =O21 -> 60
F34: Main Branch Net22

Sheet Net21 (hidden)
B1: =SUM(F22:O22) -> 0 | D1: =IF(O21<'AUX2'!B6,1,0) -> 0 | E1: =+'AUX2'!J5 -> m
B2: =+'AUX2'!M9 -> 60 | C2: U start, V | D2: =+O5*1 -> 0 | F2: 1 | G2: 2 | H2: 3 | I2: 4 | J2: 5 | K2: 6 | L2: 7 | M2: 8 | N2: 9 | O2: iteration10
E3: mult. | F3: =F6+F5*F4 -> 60 | G3: =G6+G5*G4 -> 60 | H3: 60 | I3: 60 | J3: 60 | K3: 60 | L3: 60 | M3: 60 | N3: 60 | O3: 60
C4: cable type | D4: cable | E4: 0 | F4: =VLOOKUP($D4,specs!$K$5:$L$19,2)*IF($E$1="m",$D5,($D5*0.3048))/1000 -> 0 | G4: =VLOOKUP($D4,specs!$K$5:$L$19,2)*IF($E$1="m",$D5,($D5*0.3048))/1000 -> 0 | H4: =VLOOKUP($D4,specs!$K$5:$L$19,2)*IF($E$1="m",$D5,($D5*0.3048))/1000 -> 0 | I4: =VLOOKUP($D4,specs!$K$5:$L$19,2)*IF($E$1="m",$D5,($D5*0.3048))/1000 -> 0 | J4: =VLOOKUP($D4,specs!$K$5:$L$19,2)*IF($E$1="m",$D5,($D5*0.3048))/1000 -> 0 | K4: =VLOOKUP($D4,specs!$K$5:$L$19,2)*IF($E$1="m",$D5,($D5*0.3048))/1000 -> 0 | L4: =VLOOKUP($D4,specs!$K$5:$L$19,2)*IF($E$1="m",$D5,($D5*0.3048))/1000 -> 0 | M4: =VLOOKUP($D4,specs!$K$5:$L$19,2)*IF($E$1="m",$D5,($D5*0.3048))/1000 -> 0 | N4: =VLOOKUP($D4,specs!$K$5:$L$19,2)*IF($E$1="m",$D5,($D5*0.3048))/1000 -> 0 | O4: =VLOOKUP($D4,specs!$K$5:$L$19,2)*IF($E$1="m",$D5,($D5*0.3048))/1000 -> 0
C5: span length,m | D5: 0 | E5: 0 | F5: =VLOOKUP($D6,specs!$D$5:$H$17,4)/F6*1.03*$E6+F8 -> 0 | G5: =VLOOKUP($D6,specs!$D$5:$H$17,4)/G6*1.03*$E6+G8 -> 0 | H5: =VLOOKUP($D6,specs!$D$5:$H$17,4)/H6*1.03*$E6+H8 -> 0 | I5: =VLOOKUP($D6,specs!$D$5:$H$17,4)/I6*1.03*$E6+I8 -> 0 | J5: =VLOOKUP($D6,specs!$D$5:$H$17,4)/J6*1.03*$E6+J8 -> 0 | K5: =VLOOKUP($D6,specs!$D$5:$H$17,4)/K6*1.03*$E6+K8 -> 0 | L5: =VLOOKUP($D6,specs!$D$5:$H$17,4)/L6*1.03*$E6+L8 -> 0 | M5: =VLOOKUP($D6,specs!$D$5:$H$17,4)/M6*1.03*$E6+M8 -> 0 | N5: =VLOOKUP($D6,specs!$D$5:$H$17,4)/N6*1.03*$E6+N8 -> 0 | O5: =VLOOKUP($D6,specs!$D$5:$H$17,4)/O6*1.03*$E6+O8 -> 0
C6: amplifier | D6: load | E6: 0 | F6: =F9+F8*F7 -> 60 | G6: =G9+G8*G7 -> 60 | H6: 60 | I6: 60 | J6: 60 | K6: 60 | L6: 60 | M6: 60 | N6: 60 | O6: 60
C7: cable type | D7: cable | E7: 0 | F7: =VLOOKUP($D7,specs!$K$5:$L$19,2)*IF($E$1="m",$D8,($D8*0.3048))/1000 -> 0 | G7: =VLOOKUP($D7,specs!$K$5:$L$19,2)*IF($E$1="m",$D8,($D8*0.3048))/1000 -> 0 | H7: =VLOOKUP($D7,specs!$K$5:$L$19,2)*IF($E$1="m",$D8,($D8*0.3048))/1000 -> 0 | I7: =VLOOKUP($D7,specs!$K$5:$L$19,2)*IF($E$1="m",$D8,($D8*0.3048))/1000 -> 0 | J7: =VLOOKUP($D7,specs!$K$5:$L$19,2)*IF($E$1="m",$D8,($D8*0.3048))/1000 -> 0 | K7: =VLOOKUP($D7,specs!$K$5:$L$19,2)*IF($E$1="m",$D8,($D8*0.3048))/1000 -> 0 | L7: =VLOOKUP($D7,specs!$K$5:$L$19,2)*IF($E$1="m",$D8,($D8*0.3048))/1000 -> 0 | M7: =VLOOKUP($D7,specs!$K$5:$L$19,2)*IF($E$1="m",$D8,($D8*0.3048))/1000 -> 0 | N7: =VLOOKUP($D7,specs!$K$5:$L$19,2)*IF($E$1="m",$D8,($D8*0.3048))/1000 -> 0 | O7: =VLOOKUP($D7,specs!$K$5:$L$19,2)*IF($E$1="m",$D8,($D8*0.3048))/1000 -> 0
C8: span length,m | D8: 0 | E8: 0 | F8: =VLOOKUP($D9,specs!$D$5:$H$17,4)/F9*1.03*$E9+F11 -> 0 | G8: =VLOOKUP($D9,specs!$D$5:$H$17,4)/G9*1.03*$E9+G11 -> 0 | H8: =VLOOKUP($D9,specs!$D$5:$H$17,4)/H9*1.03*$E9+H11 -> 0 | I8: =VLOOKUP($D9,specs!$D$5:$H$17,4)/I9*1.03*$E9+I11 -> 0 | J8: =VLOOKUP($D9,specs!$D$5:$H$17,4)/J9*1.03*$E9+J11 -> 0 | K8: =VLOOKUP($D9,specs!$D$5:$H$17,4)/K9*1.03*$E9+K11 -> 0 | L8: =VLOOKUP($D9,specs!$D$5:$H$17,4)/L9*1.03*$E9+L11 -> 0 | M8: =VLOOKUP($D9,specs!$D$5:$H$17,4)/M9*1.03*$E9+M11 -> 0 | N8: =VLOOKUP($D9,specs!$D$5:$H$17,4)/N9*1.03*$E9+N11 -> 0 | O8: =VLOOKUP($D9,specs!$D$5:$H$17,4)/O9*1.03*$E9+O11 -> 0
C9: amplifier | D9: load | E9: 0 | F9: =F12+F11*F10 -> 60 | G9: =G12+G11*G10 -> 60 | H9: 60 | I9: 60 | J9: 60 | K9: 60 | L9: 60 | M9: 60 | N9: 60 | O9: 60
C10: cable type | D10: cable | E10: 0 | F10: =VLOOKUP($D10,specs!$K$5:$L$19,2)*IF($E$1="m",$D11,($D11*0.3048))/1000 -> 0 | G10: =VLOOKUP($D10,specs!$K$5:$L$19,2)*IF($E$1="m",$D11,($D11*0.3048))/1000 -> 0 | H10: =VLOOKUP($D10,specs!$K$5:$L$19,2)*IF($E$1="m",$D11,($D11*0.3048))/1000 -> 0 | I10: =VLOOKUP($D10,specs!$K$5:$L$19,2)*IF($E$1="m",$D11,($D11*0.3048))/1000 -> 0 | J10: =VLOOKUP($D10,specs!$K$5:$L$19,2)*IF($E$1="m",$D11,($D11*0.3048))/1000 -> 0 | K10: =VLOOKUP($D10,specs!$K$5:$L$19,2)*IF($E$1="m",$D11,($D11*0.3048))/1000 -> 0 | L10: =VLOOKUP($D10,specs!$K$5:$L$19,2)*IF($E$1="m",$D11,($D11*0.3048))/1000 -> 0 | M10: =VLOOKUP($D10,specs!$K$5:$L$19,2)*IF($E$1="m",$D11,($D11*0.3048))/1000 -> 0 | N10: =VLOOKUP($D10,specs!$K$5:$L$19,2)*IF($E$1="m",$D11,($D11*0.3048))/1000 -> 0 | O10: =VLOOKUP($D10,specs!$K$5:$L$19,2)*IF($E$1="m",$D11,($D11*0.3048))/1000 -> 0
C11: span length,m | D11: 0 | E11: 0 | F11: =VLOOKUP($D12,specs!$D$5:$H$17,4)/F12*1.03*$E12+F14 -> 0 | G11: =VLOOKUP($D12,specs!$D$5:$H$17,4)/G12*1.03*$E12+G14 -> 0 | H11: =VLOOKUP($D12,specs!$D$5:$H$17,4)/H12*1.03*$E12+H14 -> 0 | I11: =VLOOKUP($D12,specs!$D$5:$H$17,4)/I12*1.03*$E12+I14 -> 0 | J11: =VLOOKUP($D12,specs!$D$5:$H$17,4)/J12*1.03*$E12+J14 -> 0 | K11: =VLOOKUP($D12,specs!$D$5:$H$17,4)/K12*1.03*$E12+K14 -> 0 | L11: =VLOOKUP($D12,specs!$D$5:$H$17,4)/L12*1.03*$E12+L14 -> 0 | M11: =VLOOKUP($D12,specs!$D$5:$H$17,4)/M12*1.03*$E12+M14 -> 0 | N11: =VLOOKUP($D12,specs!$D$5:$H$17,4)/N12*1.03*$E12+N14 -> 0 | O11: =VLOOKUP($D12,specs!$D$5:$H$17,4)/O12*1.03*$E12+O14 -> 0
C12: amplifier | D12: load | E12: 0 | F12: =F15+F14*F13 -> 60 | G12: =G15+G14*G13 -> 60 | H12: 60 | I12: 60 | J12: 60 | K12: 60 | L12: 60 | M12: 60 | N12: 60 | O12: 60
C13: cable type | D13: cable | E13: 0 | F13: =VLOOKUP($D13,specs!$K$5:$L$19,2)*IF($E$1="m",$D14,($D14*0.3048))/1000 -> 0 | G13: =VLOOKUP($D13,specs!$K$5:$L$19,2)*IF($E$1="m",$D14,($D14*0.3048))/1000 -> 0 | H13: =VLOOKUP($D13,specs!$K$5:$L$19,2)*IF($E$1="m",$D14,($D14*0.3048))/1000 -> 0 | I13: =VLOOKUP($D13,specs!$K$5:$L$19,2)*IF($E$1="m",$D14,($D14*0.3048))/1000 -> 0 | J13: =VLOOKUP($D13,specs!$K$5:$L$19,2)*IF($E$1="m",$D14,($D14*0.3048))/1000 -> 0 | K13: =VLOOKUP($D13,specs!$K$5:$L$19,2)*IF($E$1="m",$D14,($D14*0.3048))/1000 -> 0 | L13: =VLOOKUP($D13,specs!$K$5:$L$19,2)*IF($E$1="m",$D14,($D14*0.3048))/1000 -> 0 | M13: =VLOOKUP($D13,specs!$K$5:$L$19,2)*IF($E$1="m",$D14,($D14*0.3048))/1000 -> 0 | N13: =VLOOKUP($D13,specs!$K$5:$L$19,2)*IF($E$1="m",$D14,($D14*0.3048))/1000 -> 0 | O13: =VLOOKUP($D13,specs!$K$5:$L$19,2)*IF($E$1="m",$D14,($D14*0.3048))/1000 -> 0
C14: span length,m | D14: 0 | E14: 0 | F14: =VLOOKUP($D15,specs!$D$5:$H$17,4)/F15*1.03*$E15+F17 -> 0 | G14: =VLOOKUP($D15,specs!$D$5:$H$17,4)/G15*1.03*$E15+G17 -> 0 | H14: =VLOOKUP($D15,specs!$D$5:$H$17,4)/H15*1.03*$E15+H17 -> 0 | I14: =VLOOKUP($D15,specs!$D$5:$H$17,4)/I15*1.03*$E15+I17 -> 0 | J14: =VLOOKUP($D15,specs!$D$5:$H$17,4)/J15*1.03*$E15+J17 -> 0 | K14: =VLOOKUP($D15,specs!$D$5:$H$17,4)/K15*1.03*$E15+K17 -> 0 | L14: =VLOOKUP($D15,specs!$D$5:$H$17,4)/L15*1.03*$E15+L17 -> 0 | M14: =VLOOKUP($D15,specs!$D$5:$H$17,4)/M15*1.03*$E15+M17 -> 0 | N14: =VLOOKUP($D15,specs!$D$5:$H$17,4)/N15*1.03*$E15+N17 -> 0 | O14: =VLOOKUP($D15,specs!$D$5:$H$17,4)/O15*1.03*$E15+O17 -> 0
C15: amplifier | D15: load | E15: 0 | F15: =F18+F17*F16 -> 60 | G15: =G18+G17*G16 -> 60 | H15: 60 | I15: 60 | J15: 60 | K15: 60 | L15: 60 | M15: 60 | N15: 60 | O15: 60
C16: cable type | D16: cable | E16: 0 | F16: =VLOOKUP($D16,specs!$K$5:$L$19,2)*IF($E$1="m",$D17,($D17*0.3048))/1000 -> 0 | G16: =VLOOKUP($D16,specs!$K$5:$L$19,2)*IF($E$1="m",$D17,($D17*0.3048))/1000 -> 0 | H16: =VLOOKUP($D16,specs!$K$5:$L$19,2)*IF($E$1="m",$D17,($D17*0.3048))/1000 -> 0 | I16: =VLOOKUP($D16,specs!$K$5:$L$19,2)*IF($E$1="m",$D17,($D17*0.3048))/1000 -> 0 | J16: =VLOOKUP($D16,specs!$K$5:$L$19,2)*IF($E$1="m",$D17,($D17*0.3048))/1000 -> 0 | K16: =VLOOKUP($D16,specs!$K$5:$L$19,2)*IF($E$1="m",$D17,($D17*0.3048))/1000 -> 0 | L16: =VLOOKUP($D16,specs!$K$5:$L$19,2)*IF($E$1="m",$D17,($D17*0.3048))/1000 -> 0 | M16: =VLOOKUP($D16,specs!$K$5:$L$19,2)*IF($E$1="m",$D17,($D17*0.3048))/1000 -> 0 | N16: =VLOOKUP($D16,specs!$K$5:$L$19,2)*IF($E$1="m",$D17,($D17*0.3048))/1000 -> 0 | O16: =VLOOKUP($D16,specs!$K$5:$L$19,2)*IF($E$1="m",$D17,($D17*0.3048))/1000 -> 0
C17: span length,m | D17: 0 | E17: 0 | F17: =VLOOKUP($D18,specs!$D$5:$H$17,4)/F18*1.03*$E18+F20 -> 0 | G17: =VLOOKUP($D18,specs!$D$5:$H$17,4)/G18*1.03*$E18+G20 -> 0 | H17: =VLOOKUP($D18,specs!$D$5:$H$17,4)/H18*1.03*$E18+H20 -> 0 | I17: =VLOOKUP($D18,specs!$D$5:$H$17,4)/I18*1.03*$E18+I20 -> 0 | J17: =VLOOKUP($D18,specs!$D$5:$H$17,4)/J18*1.03*$E18+J20 -> 0 | K17: =VLOOKUP($D18,specs!$D$5:$H$17,4)/K18*1.03*$E18+K20 -> 0 | L17: =VLOOKUP($D18,specs!$D$5:$H$17,4)/L18*1.03*$E18+L20 -> 0 | M17: =VLOOKUP($D18,specs!$D$5:$H$17,4)/M18*1.03*$E18+M20 -> 0 | N17: =VLOOKUP($D18,specs!$D$5:$H$17,4)/N18*1.03*$E18+N20 -> 0 | O17: =VLOOKUP($D18,specs!$D$5:$H$17,4)/O18*1.03*$E18+O20 -> 0
C18: amplifier | D18: load | E18: 0 | F18: =F21+F20*F19 -> 60 | G18: =G21+G20*G19 -> 60 | H18: 60 | I18: 60 | J18: 60 | K18: 60 | L18: 60 | M18: 60 | N18: 60 | O18: 60
C19: cable type | D19: cable | E19: 0 | F19: =VLOOKUP($D19,specs!$K$5:$L$19,2)*IF($E$1="m",$D20,($D20*0.3048))/1000 -> 0 | G19: =VLOOKUP($D19,specs!$K$5:$L$19,2)*IF($E$1="m",$D20,($D20*0.3048))/1000 -> 0 | H19: =VLOOKUP($D19,specs!$K$5:$L$19,2)*IF($E$1="m",$D20,($D20*0.3048))/1000 -> 0 | I19: =VLOOKUP($D19,specs!$K$5:$L$19,2)*IF($E$1="m",$D20,($D20*0.3048))/1000 -> 0 | J19: =VLOOKUP($D19,specs!$K$5:$L$19,2)*IF($E$1="m",$D20,($D20*0.3048))/1000 -> 0 | K19: =VLOOKUP($D19,specs!$K$5:$L$19,2)*IF($E$1="m",$D20,($D20*0.3048))/1000 -> 0 | L19: =VLOOKUP($D19,specs!$K$5:$L$19,2)*IF($E$1="m",$D20,($D20*0.3048))/1000 -> 0 | M19: =VLOOKUP($D19,specs!$K$5:$L$19,2)*IF($E$1="m",$D20,($D20*0.3048))/1000 -> 0 | N19: =VLOOKUP($D19,specs!$K$5:$L$19,2)*IF($E$1="m",$D20,($D20*0.3048))/1000 -> 0 | O19: =VLOOKUP($D19,specs!$K$5:$L$19,2)*IF($E$1="m",$D20,($D20*0.3048))/1000 -> 0
C20: span length,m | D20: 0 | E20: 0 | F20: =VLOOKUP($D21,specs!$D$5:$H$17,4)/F21*1.03*$E21+F23 -> 0 | G20: =VLOOKUP($D21,specs!$D$5:$H$17,4)/G21*1.03*$E21+G23 -> 0 | H20: =VLOOKUP($D21,specs!$D$5:$H$17,4)/H21*1.03*$E21+H23 -> 0 | I20: =VLOOKUP($D21,specs!$D$5:$H$17,4)/I21*1.03*$E21+I23 -> 0 | J20: =VLOOKUP($D21,specs!$D$5:$H$17,4)/J21*1.03*$E21+J23 -> 0 | K20: =VLOOKUP($D21,specs!$D$5:$H$17,4)/K21*1.03*$E21+K23 -> 0 | L20: =VLOOKUP($D21,specs!$D$5:$H$17,4)/L21*1.03*$E21+L23 -> 0 | M20: =VLOOKUP($D21,specs!$D$5:$H$17,4)/M21*1.03*$E21+M23 -> 0 | N20: =VLOOKUP($D21,specs!$D$5:$H$17,4)/N21*1.03*$E21+N23 -> 0 | O20: =VLOOKUP($D21,specs!$D$5:$H$17,4)/O21*1.03*$E21+O23 -> 0
C21: amplifier | D21: load | E21: 0 | F21: =B2 -> 60 | G21: =F21-(F3-$B$2) -> 60 | H21: 60 | I21: 60 | J21: 60 | K21: 60 | L21: 60 | M21: 60 | N21: 60 | O21: 60
F22: =IF(F21<0,1,0) -> 0 | G22: =IF(G21<0,1,0) -> 0 | H22: 0 | I22: 0 | J22: 0 | K22: 0 | L22: 0 | M22: 0 | N22: 0 | O22: 0
C24: User added Branch
M27: =O21 -> 60
F34: Main Branch Net21

Sheet Net12 (hidden)
B1: =SUM(F22:O22) -> 0 | D1: =IF(O21<'AUX2'!B6,1,0) -> 0 | E1: =+'AUX2'!J5 -> m
B2: =+'AUX2'!M8 -> 60 | C2: U start, V | D2: =+O5*1 -> 0 | F2: 1 | G2: 2 | H2: 3 | I2: 4 | J2: 5 | K2: 6 | L2: 7 | M2: 8 | N2: 9 | O2: iteration10
E3: mult. | F3: =F6+F5*F4 -> 60 | G3: =G6+G5*G4 -> 60 | H3: 60 | I3: 60 | J3: 60 | K3: 60 | L3: 60 | M3: 60 | N3: 60 | O3: 60
C4: cable type | D4: cable | E4: 0 | F4: =VLOOKUP($D4,specs!$K$5:$L$19,2)*IF($E$1="m",$D5,($D5*0.3048))/1000 -> 0 | G4: =VLOOKUP($D4,specs!$K$5:$L$19,2)*IF($E$1="m",$D5,($D5*0.3048))/1000 -> 0 | H4: =VLOOKUP($D4,specs!$K$5:$L$19,2)*IF($E$1="m",$D5,($D5*0.3048))/1000 -> 0 | I4: =VLOOKUP($D4,specs!$K$5:$L$19,2)*IF($E$1="m",$D5,($D5*0.3048))/1000 -> 0 | J4: =VLOOKUP($D4,specs!$K$5:$L$19,2)*IF($E$1="m",$D5,($D5*0.3048))/1000 -> 0 | K4: =VLOOKUP($D4,specs!$K$5:$L$19,2)*IF($E$1="m",$D5,($D5*0.3048))/1000 -> 0 | L4: =VLOOKUP($D4,specs!$K$5:$L$19,2)*IF($E$1="m",$D5,($D5*0.3048))/1000 -> 0 | M4: =VLOOKUP($D4,specs!$K$5:$L$19,2)*IF($E$1="m",$D5,($D5*0.3048))/1000 -> 0 | N4: =VLOOKUP($D4,specs!$K$5:$L$19,2)*IF($E$1="m",$D5,($D5*0.3048))/1000 -> 0 | O4: =VLOOKUP($D4,specs!$K$5:$L$19,2)*IF($E$1="m",$D5,($D5*0.3048))/1000 -> 0
C5: span length,m | D5: 0 | E5: 0 | F5: =VLOOKUP($D6,specs!$D$5:$H$17,4)/F6*1.03*$E6+F8 -> 0 | G5: =VLOOKUP($D6,specs!$D$5:$H$17,4)/G6*1.03*$E6+G8 -> 0 | H5: =VLOOKUP($D6,specs!$D$5:$H$17,4)/H6*1.03*$E6+H8 -> 0 | I5: =VLOOKUP($D6,specs!$D$5:$H$17,4)/I6*1.03*$E6+I8 -> 0 | J5: =VLOOKUP($D6,specs!$D$5:$H$17,4)/J6*1.03*$E6+J8 -> 0 | K5: =VLOOKUP($D6,specs!$D$5:$H$17,4)/K6*1.03*$E6+K8 -> 0 | L5: =VLOOKUP($D6,specs!$D$5:$H$17,4)/L6*1.03*$E6+L8 -> 0 | M5: =VLOOKUP($D6,specs!$D$5:$H$17,4)/M6*1.03*$E6+M8 -> 0 | N5: =VLOOKUP($D6,specs!$D$5:$H$17,4)/N6*1.03*$E6+N8 -> 0 | O5: =VLOOKUP($D6,specs!$D$5:$H$17,4)/O6*1.03*$E6+O8 -> 0
C6: amplifier | D6: load | E6: 0 | F6: =F9+F8*F7 -> 60 | G6: =G9+G8*G7 -> 60 | H6: 60 | I6: 60 | J6: 60 | K6: 60 | L6: 60 | M6: 60 | N6: 60 | O6: 60
C7: cable type | D7: cable | E7: 0 | F7: =VLOOKUP($D7,specs!$K$5:$L$19,2)*IF($E$1="m",$D8,($D8*0.3048))/1000 -> 0 | G7: =VLOOKUP($D7,specs!$K$5:$L$19,2)*IF($E$1="m",$D8,($D8*0.3048))/1000 -> 0 | H7: =VLOOKUP($D7,specs!$K$5:$L$19,2)*IF($E$1="m",$D8,($D8*0.3048))/1000 -> 0 | I7: =VLOOKUP($D7,specs!$K$5:$L$19,2)*IF($E$1="m",$D8,($D8*0.3048))/1000 -> 0 | J7: =VLOOKUP($D7,specs!$K$5:$L$19,2)*IF($E$1="m",$D8,($D8*0.3048))/1000 -> 0 | K7: =VLOOKUP($D7,specs!$K$5:$L$19,2)*IF($E$1="m",$D8,($D8*0.3048))/1000 -> 0 | L7: =VLOOKUP($D7,specs!$K$5:$L$19,2)*IF($E$1="m",$D8,($D8*0.3048))/1000 -> 0 | M7: =VLOOKUP($D7,specs!$K$5:$L$19,2)*IF($E$1="m",$D8,($D8*0.3048))/1000 -> 0 | N7: =VLOOKUP($D7,specs!$K$5:$L$19,2)*IF($E$1="m",$D8,($D8*0.3048))/1000 -> 0 | O7: =VLOOKUP($D7,specs!$K$5:$L$19,2)*IF($E$1="m",$D8,($D8*0.3048))/1000 -> 0
C8: span length,m | D8: 0 | E8: 0 | F8: =VLOOKUP($D9,specs!$D$5:$H$17,4)/F9*1.03*$E9+F11 -> 0 | G8: =VLOOKUP($D9,specs!$D$5:$H$17,4)/G9*1.03*$E9+G11 -> 0 | H8: =VLOOKUP($D9,specs!$D$5:$H$17,4)/H9*1.03*$E9+H11 -> 0 | I8: =VLOOKUP($D9,specs!$D$5:$H$17,4)/I9*1.03*$E9+I11 -> 0 | J8: =VLOOKUP($D9,specs!$D$5:$H$17,4)/J9*1.03*$E9+J11 -> 0 | K8: =VLOOKUP($D9,specs!$D$5:$H$17,4)/K9*1.03*$E9+K11 -> 0 | L8: =VLOOKUP($D9,specs!$D$5:$H$17,4)/L9*1.03*$E9+L11 -> 0 | M8: =VLOOKUP($D9,specs!$D$5:$H$17,4)/M9*1.03*$E9+M11 -> 0 | N8: =VLOOKUP($D9,specs!$D$5:$H$17,4)/N9*1.03*$E9+N11 -> 0 | O8: =VLOOKUP($D9,specs!$D$5:$H$17,4)/O9*1.03*$E9+O11 -> 0
C9: amplifier | D9: load | E9: 0 | F9: =F12+F11*F10 -> 60 | G9: =G12+G11*G10 -> 60 | H9: 60 | I9: 60 | J9: 60 | K9: 60 | L9: 60 | M9: 60 | N9: 60 | O9: 60
C10: cable type | D10: cable | E10: 0 | F10: =VLOOKUP($D10,specs!$K$5:$L$19,2)*IF($E$1="m",$D11,($D11*0.3048))/1000 -> 0 | G10: =VLOOKUP($D10,specs!$K$5:$L$19,2)*IF($E$1="m",$D11,($D11*0.3048))/1000 -> 0 | H10: =VLOOKUP($D10,specs!$K$5:$L$19,2)*IF($E$1="m",$D11,($D11*0.3048))/1000 -> 0 | I10: =VLOOKUP($D10,specs!$K$5:$L$19,2)*IF($E$1="m",$D11,($D11*0.3048))/1000 -> 0 | J10: =VLOOKUP($D10,specs!$K$5:$L$19,2)*IF($E$1="m",$D11,($D11*0.3048))/1000 -> 0 | K10: =VLOOKUP($D10,specs!$K$5:$L$19,2)*IF($E$1="m",$D11,($D11*0.3048))/1000 -> 0 | L10: =VLOOKUP($D10,specs!$K$5:$L$19,2)*IF($E$1="m",$D11,($D11*0.3048))/1000 -> 0 | M10: =VLOOKUP($D10,specs!$K$5:$L$19,2)*IF($E$1="m",$D11,($D11*0.3048))/1000 -> 0 | N10: =VLOOKUP($D10,specs!$K$5:$L$19,2)*IF($E$1="m",$D11,($D11*0.3048))/1000 -> 0 | O10: =VLOOKUP($D10,specs!$K$5:$L$19,2)*IF($E$1="m",$D11,($D11*0.3048))/1000 -> 0
C11: span length,m | D11: 0 | E11: 0 | F11: =VLOOKUP($D12,specs!$D$5:$H$17,4)/F12*1.03*$E12+F14 -> 0 | G11: =VLOOKUP($D12,specs!$D$5:$H$17,4)/G12*1.03*$E12+G14 -> 0 | H11: =VLOOKUP($D12,specs!$D$5:$H$17,4)/H12*1.03*$E12+H14 -> 0 | I11: =VLOOKUP($D12,specs!$D$5:$H$17,4)/I12*1.03*$E12+I14 -> 0 | J11: =VLOOKUP($D12,specs!$D$5:$H$17,4)/J12*1.03*$E12+J14 -> 0 | K11: =VLOOKUP($D12,specs!$D$5:$H$17,4)/K12*1.03*$E12+K14 -> 0 | L11: =VLOOKUP($D12,specs!$D$5:$H$17,4)/L12*1.03*$E12+L14 -> 0 | M11: =VLOOKUP($D12,specs!$D$5:$H$17,4)/M12*1.03*$E12+M14 -> 0 | N11: =VLOOKUP($D12,specs!$D$5:$H$17,4)/N12*1.03*$E12+N14 -> 0 | O11: =VLOOKUP($D12,specs!$D$5:$H$17,4)/O12*1.03*$E12+O14 -> 0
C12: amplifier | D12: load | E12: 0 | F12: =F15+F14*F13 -> 60 | G12: =G15+G14*G13 -> 60 | H12: 60 | I12: 60 | J12: 60 | K12: 60 | L12: 60 | M12: 60 | N12: 60 | O12: 60
C13: cable type | D13: cable | E13: 0 | F13: =VLOOKUP($D13,specs!$K$5:$L$19,2)*IF($E$1="m",$D14,($D14*0.3048))/1000 -> 0 | G13: =VLOOKUP($D13,specs!$K$5:$L$19,2)*IF($E$1="m",$D14,($D14*0.3048))/1000 -> 0 | H13: =VLOOKUP($D13,specs!$K$5:$L$19,2)*IF($E$1="m",$D14,($D14*0.3048))/1000 -> 0 | I13: =VLOOKUP($D13,specs!$K$5:$L$19,2)*IF($E$1="m",$D14,($D14*0.3048))/1000 -> 0 | J13: =VLOOKUP($D13,specs!$K$5:$L$19,2)*IF($E$1="m",$D14,($D14*0.3048))/1000 -> 0 | K13: =VLOOKUP($D13,specs!$K$5:$L$19,2)*IF($E$1="m",$D14,($D14*0.3048))/1000 -> 0 | L13: =VLOOKUP($D13,specs!$K$5:$L$19,2)*IF($E$1="m",$D14,($D14*0.3048))/1000 -> 0 | M13: =VLOOKUP($D13,specs!$K$5:$L$19,2)*IF($E$1="m",$D14,($D14*0.3048))/1000 -> 0 | N13: =VLOOKUP($D13,specs!$K$5:$L$19,2)*IF($E$1="m",$D14,($D14*0.3048))/1000 -> 0 | O13: =VLOOKUP($D13,specs!$K$5:$L$19,2)*IF($E$1="m",$D14,($D14*0.3048))/1000 -> 0
C14: span length,m | D14: 0 | E14: 0 | F14: =VLOOKUP($D15,specs!$D$5:$H$17,4)/F15*1.03*$E15+F17 -> 0 | G14: =VLOOKUP($D15,specs!$D$5:$H$17,4)/G15*1.03*$E15+G17 -> 0 | H14: =VLOOKUP($D15,specs!$D$5:$H$17,4)/H15*1.03*$E15+H17 -> 0 | I14: =VLOOKUP($D15,specs!$D$5:$H$17,4)/I15*1.03*$E15+I17 -> 0 | J14: =VLOOKUP($D15,specs!$D$5:$H$17,4)/J15*1.03*$E15+J17 -> 0 | K14: =VLOOKUP($D15,specs!$D$5:$H$17,4)/K15*1.03*$E15+K17 -> 0 | L14: =VLOOKUP($D15,specs!$D$5:$H$17,4)/L15*1.03*$E15+L17 -> 0 | M14: =VLOOKUP($D15,specs!$D$5:$H$17,4)/M15*1.03*$E15+M17 -> 0 | N14: =VLOOKUP($D15,specs!$D$5:$H$17,4)/N15*1.03*$E15+N17 -> 0 | O14: =VLOOKUP($D15,specs!$D$5:$H$17,4)/O15*1.03*$E15+O17 -> 0
C15: amplifier | D15: load | E15: 0 | F15: =F18+F17*F16 -> 60 | G15: =G18+G17*G16 -> 60 | H15: 60 | I15: 60 | J15: 60 | K15: 60 | L15: 60 | M15: 60 | N15: 60 | O15: 60
C16: cable type | D16: cable | E16: 0 | F16: =VLOOKUP($D16,specs!$K$5:$L$19,2)*IF($E$1="m",$D17,($D17*0.3048))/1000 -> 0 | G16: =VLOOKUP($D16,specs!$K$5:$L$19,2)*IF($E$1="m",$D17,($D17*0.3048))/1000 -> 0 | H16: =VLOOKUP($D16,specs!$K$5:$L$19,2)*IF($E$1="m",$D17,($D17*0.3048))/1000 -> 0 | I16: =VLOOKUP($D16,specs!$K$5:$L$19,2)*IF($E$1="m",$D17,($D17*0.3048))/1000 -> 0 | J16: =VLOOKUP($D16,specs!$K$5:$L$19,2)*IF($E$1="m",$D17,($D17*0.3048))/1000 -> 0 | K16: =VLOOKUP($D16,specs!$K$5:$L$19,2)*IF($E$1="m",$D17,($D17*0.3048))/1000 -> 0 | L16: =VLOOKUP($D16,specs!$K$5:$L$19,2)*IF($E$1="m",$D17,($D17*0.3048))/1000 -> 0 | M16: =VLOOKUP($D16,specs!$K$5:$L$19,2)*IF($E$1="m",$D17,($D17*0.3048))/1000 -> 0 | N16: =VLOOKUP($D16,specs!$K$5:$L$19,2)*IF($E$1="m",$D17,($D17*0.3048))/1000 -> 0 | O16: =VLOOKUP($D16,specs!$K$5:$L$19,2)*IF($E$1="m",$D17,($D17*0.3048))/1000 -> 0
C17: span length,m | D17: 0 | E17: 0 | F17: =VLOOKUP($D18,specs!$D$5:$H$17,4)/F18*1.03*$E18+F20 -> 0 | G17: =VLOOKUP($D18,specs!$D$5:$H$17,4)/G18*1.03*$E18+G20 -> 0 | H17: =VLOOKUP($D18,specs!$D$5:$H$17,4)/H18*1.03*$E18+H20 -> 0 | I17: =VLOOKUP($D18,specs!$D$5:$H$17,4)/I18*1.03*$E18+I20 -> 0 | J17: =VLOOKUP($D18,specs!$D$5:$H$17,4)/J18*1.03*$E18+J20 -> 0 | K17: =VLOOKUP($D18,specs!$D$5:$H$17,4)/K18*1.03*$E18+K20 -> 0 | L17: =VLOOKUP($D18,specs!$D$5:$H$17,4)/L18*1.03*$E18+L20 -> 0 | M17: =VLOOKUP($D18,specs!$D$5:$H$17,4)/M18*1.03*$E18+M20 -> 0 | N17: =VLOOKUP($D18,specs!$D$5:$H$17,4)/N18*1.03*$E18+N20 -> 0 | O17: =VLOOKUP($D18,specs!$D$5:$H$17,4)/O18*1.03*$E18+O20 -> 0
C18: amplifier | D18: load | E18: 0 | F18: =F21+F20*F19 -> 60 | G18: =G21+G20*G19 -> 60 | H18: 60 | I18: 60 | J18: 60 | K18: 60 | L18: 60 | M18: 60 | N18: 60 | O18: 60
C19: cable type | D19: cable | E19: 0 | F19: =VLOOKUP($D19,specs!$K$5:$L$19,2)*IF($E$1="m",$D20,($D20*0.3048))/1000 -> 0 | G19: =VLOOKUP($D19,specs!$K$5:$L$19,2)*IF($E$1="m",$D20,($D20*0.3048))/1000 -> 0 | H19: =VLOOKUP($D19,specs!$K$5:$L$19,2)*IF($E$1="m",$D20,($D20*0.3048))/1000 -> 0 | I19: =VLOOKUP($D19,specs!$K$5:$L$19,2)*IF($E$1="m",$D20,($D20*0.3048))/1000 -> 0 | J19: =VLOOKUP($D19,specs!$K$5:$L$19,2)*IF($E$1="m",$D20,($D20*0.3048))/1000 -> 0 | K19: =VLOOKUP($D19,specs!$K$5:$L$19,2)*IF($E$1="m",$D20,($D20*0.3048))/1000 -> 0 | L19: =VLOOKUP($D19,specs!$K$5:$L$19,2)*IF($E$1="m",$D20,($D20*0.3048))/1000 -> 0 | M19: =VLOOKUP($D19,specs!$K$5:$L$19,2)*IF($E$1="m",$D20,($D20*0.3048))/1000 -> 0 | N19: =VLOOKUP($D19,specs!$K$5:$L$19,2)*IF($E$1="m",$D20,($D20*0.3048))/1000 -> 0 | O19: =VLOOKUP($D19,specs!$K$5:$L$19,2)*IF($E$1="m",$D20,($D20*0.3048))/1000 -> 0
C20: span length,m | D20: 0 | E20: 0 | F20: =VLOOKUP($D21,specs!$D$5:$H$17,4)/F21*1.03*$E21+F23 -> 0 | G20: =VLOOKUP($D21,specs!$D$5:$H$17,4)/G21*1.03*$E21+G23 -> 0 | H20: =VLOOKUP($D21,specs!$D$5:$H$17,4)/H21*1.03*$E21+H23 -> 0 | I20: =VLOOKUP($D21,specs!$D$5:$H$17,4)/I21*1.03*$E21+I23 -> 0 | J20: =VLOOKUP($D21,specs!$D$5:$H$17,4)/J21*1.03*$E21+J23 -> 0 | K20: =VLOOKUP($D21,specs!$D$5:$H$17,4)/K21*1.03*$E21+K23 -> 0 | L20: =VLOOKUP($D21,specs!$D$5:$H$17,4)/L21*1.03*$E21+L23 -> 0 | M20: =VLOOKUP($D21,specs!$D$5:$H$17,4)/M21*1.03*$E21+M23 -> 0 | N20: =VLOOKUP($D21,specs!$D$5:$H$17,4)/N21*1.03*$E21+N23 -> 0 | O20: =VLOOKUP($D21,specs!$D$5:$H$17,4)/O21*1.03*$E21+O23 -> 0
C21: amplifier | D21: load | E21: 0 | F21: =B2 -> 60 | G21: =F21-(F3-$B$2) -> 60 | H21: 60 | I21: 60 | J21: 60 | K21: 60 | L21: 60 | M21: 60 | N21: 60 | O21: 60
F22: =IF(F21<0,1,0) -> 0 | G22: =IF(G21<0,1,0) -> 0 | H22: 0 | I22: 0 | J22: 0 | K22: 0 | L22: 0 | M22: 0 | N22: 0 | O22: 0
C24: User added Branch
M27: =O21 -> 60
F34: Main Branch Net12

Sheet Net11 (hidden)
B1: =SUM(F22:O22) -> 0 | D1: =IF(O21<'AUX2'!B6,1,0) -> 0 | E1: =+'AUX2'!J5 -> m
B2: =+'AUX2'!M7 -> 60 | C2: U start, V | D2: =+O5*1 -> 0 | F2: 1 | G2: 2 | H2: 3 | I2: 4 | J2: 5 | K2: 6 | L2: 7 | M2: 8 | N2: 9 | O2: iteration10
E3: mult. | F3: =F6+F5*F4 -> 60 | G3: =G6+G5*G4 -> 60 | H3: 60 | I3: 60 | J3: 60 | K3: 60 | L3: 60 | M3: 60 | N3: 60 | O3: =O6+O5*O4 -> 60
C4: cable type | D4: cable | E4: 0 | F4: =VLOOKUP($D4,specs!$K$5:$L$19,2)*IF($E$1="m",$D5,($D5*0.3048))/1000 -> 0 | G4: =VLOOKUP($D4,specs!$K$5:$L$19,2)*IF($E$1="m",$D5,($D5*0.3048))/1000 -> 0 | H4: =VLOOKUP($D4,specs!$K$5:$L$19,2)*IF($E$1="m",$D5,($D5*0.3048))/1000 -> 0 | I4: =VLOOKUP($D4,specs!$K$5:$L$19,2)*IF($E$1="m",$D5,($D5*0.3048))/1000 -> 0 | J4: =VLOOKUP($D4,specs!$K$5:$L$19,2)*IF($E$1="m",$D5,($D5*0.3048))/1000 -> 0 | K4: =VLOOKUP($D4,specs!$K$5:$L$19,2)*IF($E$1="m",$D5,($D5*0.3048))/1000 -> 0 | L4: =VLOOKUP($D4,specs!$K$5:$L$19,2)*IF($E$1="m",$D5,($D5*0.3048))/1000 -> 0 | M4: =VLOOKUP($D4,specs!$K$5:$L$19,2)*IF($E$1="m",$D5,($D5*0.3048))/1000 -> 0 | N4: =VLOOKUP($D4,specs!$K$5:$L$19,2)*IF($E$1="m",$D5,($D5*0.3048))/1000 -> 0 | O4: =VLOOKUP($D4,specs!$K$5:$L$19,2)*IF($E$1="m",$D5,($D5*0.3048))/1000 -> 0
C5: span length,m | D5: 0 | E5: 0 | F5: =VLOOKUP($D6,specs!$D$5:$H$17,4)/F6*1.03*$E6+F8 -> 0 | G5: =VLOOKUP($D6,specs!$D$5:$H$17,4)/G6*1.03*$E6+G8 -> 0 | H5: =VLOOKUP($D6,specs!$D$5:$H$17,4)/H6*1.03*$E6+H8 -> 0 | I5: =VLOOKUP($D6,specs!$D$5:$H$17,4)/I6*1.03*$E6+I8 -> 0 | J5: =VLOOKUP($D6,specs!$D$5:$H$17,4)/J6*1.03*$E6+J8 -> 0 | K5: =VLOOKUP($D6,specs!$D$5:$H$17,4)/K6*1.03*$E6+K8 -> 0 | L5: =VLOOKUP($D6,specs!$D$5:$H$17,4)/L6*1.03*$E6+L8 -> 0 | M5: =VLOOKUP($D6,specs!$D$5:$H$17,4)/M6*1.03*$E6+M8 -> 0 | N5: =VLOOKUP($D6,specs!$D$5:$H$17,4)/N6*1.03*$E6+N8 -> 0 | O5: =VLOOKUP($D6,specs!$D$5:$H$17,4)/O6*1.03*$E6+O8 -> 0
C6: amplifier | D6: load | E6: 0 | F6: =F9+F8*F7 -> 60 | G6: =G9+G8*G7 -> 60 | H6: 60 | I6: 60 | J6: 60 | K6: 60 | L6: 60 | M6: 60 | N6: 60 | O6: =O9+O8*O7 -> 60
C7: cable type | D7: cable | E7: 0 | F7: =VLOOKUP($D7,specs!$K$5:$L$19,2)*IF($E$1="m",$D8,($D8*0.3048))/1000 -> 0 | G7: =VLOOKUP($D7,specs!$K$5:$L$19,2)*IF($E$1="m",$D8,($D8*0.3048))/1000 -> 0 | H7: =VLOOKUP($D7,specs!$K$5:$L$19,2)*IF($E$1="m",$D8,($D8*0.3048))/1000 -> 0 | I7: =VLOOKUP($D7,specs!$K$5:$L$19,2)*IF($E$1="m",$D8,($D8*0.3048))/1000 -> 0 | J7: =VLOOKUP($D7,specs!$K$5:$L$19,2)*IF($E$1="m",$D8,($D8*0.3048))/1000 -> 0 | K7: =VLOOKUP($D7,specs!$K$5:$L$19,2)*IF($E$1="m",$D8,($D8*0.3048))/1000 -> 0 | L7: =VLOOKUP($D7,specs!$K$5:$L$19,2)*IF($E$1="m",$D8,($D8*0.3048))/1000 -> 0 | M7: =VLOOKUP($D7,specs!$K$5:$L$19,2)*IF($E$1="m",$D8,($D8*0.3048))/1000 -> 0 | N7: =VLOOKUP($D7,specs!$K$5:$L$19,2)*IF($E$1="m",$D8,($D8*0.3048))/1000 -> 0 | O7: =VLOOKUP($D7,specs!$K$5:$L$19,2)*IF($E$1="m",$D8,($D8*0.3048))/1000 -> 0
C8: span length,m | D8: 0 | E8: 0 | F8: =VLOOKUP($D9,specs!$D$5:$H$17,4)/F9*1.03*$E9+F11 -> 0 | G8: =VLOOKUP($D9,specs!$D$5:$H$17,4)/G9*1.03*$E9+G11 -> 0 | H8: =VLOOKUP($D9,specs!$D$5:$H$17,4)/H9*1.03*$E9+H11 -> 0 | I8: =VLOOKUP($D9,specs!$D$5:$H$17,4)/I9*1.03*$E9+I11 -> 0 | J8: =VLOOKUP($D9,specs!$D$5:$H$17,4)/J9*1.03*$E9+J11 -> 0 | K8: =VLOOKUP($D9,specs!$D$5:$H$17,4)/K9*1.03*$E9+K11 -> 0 | L8: =VLOOKUP($D9,specs!$D$5:$H$17,4)/L9*1.03*$E9+L11 -> 0 | M8: =VLOOKUP($D9,specs!$D$5:$H$17,4)/M9*1.03*$E9+M11 -> 0 | N8: =VLOOKUP($D9,specs!$D$5:$H$17,4)/N9*1.03*$E9+N11 -> 0 | O8: =VLOOKUP($D9,specs!$D$5:$H$17,4)/O9*1.03*$E9+O11 -> 0
C9: amplifier | D9: load | E9: 0 | F9: =F12+F11*F10 -> 60 | G9: =G12+G11*G10 -> 60 | H9: 60 | I9: 60 | J9: 60 | K9: 60 | L9: 60 | M9: 60 | N9: 60 | O9: =O12+O11*O10 -> 60
C10: cable type | D10: cable | E10: 0 | F10: =VLOOKUP($D10,specs!$K$5:$L$19,2)*IF($E$1="m",$D11,($D11*0.3048))/1000 -> 0 | G10: =VLOOKUP($D10,specs!$K$5:$L$19,2)*IF($E$1="m",$D11,($D11*0.3048))/1000 -> 0 | H10: =VLOOKUP($D10,specs!$K$5:$L$19,2)*IF($E$1="m",$D11,($D11*0.3048))/1000 -> 0 | I10: =VLOOKUP($D10,specs!$K$5:$L$19,2)*IF($E$1="m",$D11,($D11*0.3048))/1000 -> 0 | J10: =VLOOKUP($D10,specs!$K$5:$L$19,2)*IF($E$1="m",$D11,($D11*0.3048))/1000 -> 0 | K10: =VLOOKUP($D10,specs!$K$5:$L$19,2)*IF($E$1="m",$D11,($D11*0.3048))/1000 -> 0 | L10: =VLOOKUP($D10,specs!$K$5:$L$19,2)*IF($E$1="m",$D11,($D11*0.3048))/1000 -> 0 | M10: =VLOOKUP($D10,specs!$K$5:$L$19,2)*IF($E$1="m",$D11,($D11*0.3048))/1000 -> 0 | N10: =VLOOKUP($D10,specs!$K$5:$L$19,2)*IF($E$1="m",$D11,($D11*0.3048))/1000 -> 0 | O10: =VLOOKUP($D10,specs!$K$5:$L$19,2)*IF($E$1="m",$D11,($D11*0.3048))/1000 -> 0
C11: span length,m | D11: 0 | E11: 0 | F11: =VLOOKUP($D12,specs!$D$5:$H$17,4)/F12*1.03*$E12+F14 -> 0 | G11: =VLOOKUP($D12,specs!$D$5:$H$17,4)/G12*1.03*$E12+G14 -> 0 | H11: =VLOOKUP($D12,specs!$D$5:$H$17,4)/H12*1.03*$E12+H14 -> 0 | I11: =VLOOKUP($D12,specs!$D$5:$H$17,4)/I12*1.03*$E12+I14 -> 0 | J11: =VLOOKUP($D12,specs!$D$5:$H$17,4)/J12*1.03*$E12+J14 -> 0 | K11: =VLOOKUP($D12,specs!$D$5:$H$17,4)/K12*1.03*$E12+K14 -> 0 | L11: =VLOOKUP($D12,specs!$D$5:$H$17,4)/L12*1.03*$E12+L14 -> 0 | M11: =VLOOKUP($D12,specs!$D$5:$H$17,4)/M12*1.03*$E12+M14 -> 0 | N11: =VLOOKUP($D12,specs!$D$5:$H$17,4)/N12*1.03*$E12+N14 -> 0 | O11: =VLOOKUP($D12,specs!$D$5:$H$17,4)/O12*1.03*$E12+O14 -> 0
C12: amplifier | D12: load | E12: 0 | F12: =F15+F14*F13 -> 60 | G12: =G15+G14*G13 -> 60 | H12: 60 | I12: 60 | J12: 60 | K12: 60 | L12: 60 | M12: 60 | N12: 60 | O12: =O15+O14*O13 -> 60
C13: cable type | D13: cable | E13: 0 | F13: =VLOOKUP($D13,specs!$K$5:$L$19,2)*IF($E$1="m",$D14,($D14*0.3048))/1000 -> 0 | G13: =VLOOKUP($D13,specs!$K$5:$L$19,2)*IF($E$1="m",$D14,($D14*0.3048))/1000 -> 0 | H13: =VLOOKUP($D13,specs!$K$5:$L$19,2)*IF($E$1="m",$D14,($D14*0.3048))/1000 -> 0 | I13: =VLOOKUP($D13,specs!$K$5:$L$19,2)*IF($E$1="m",$D14,($D14*0.3048))/1000 -> 0 | J13: =VLOOKUP($D13,specs!$K$5:$L$19,2)*IF($E$1="m",$D14,($D14*0.3048))/1000 -> 0 | K13: =VLOOKUP($D13,specs!$K$5:$L$19,2)*IF($E$1="m",$D14,($D14*0.3048))/1000 -> 0 | L13: =VLOOKUP($D13,specs!$K$5:$L$19,2)*IF($E$1="m",$D14,($D14*0.3048))/1000 -> 0 | M13: =VLOOKUP($D13,specs!$K$5:$L$19,2)*IF($E$1="m",$D14,($D14*0.3048))/1000 -> 0 | N13: =VLOOKUP($D13,specs!$K$5:$L$19,2)*IF($E$1="m",$D14,($D14*0.3048))/1000 -> 0 | O13: =VLOOKUP($D13,specs!$K$5:$L$19,2)*IF($E$1="m",$D14,($D14*0.3048))/1000 -> 0
C14: span length,m | D14: 0 | E14: 0 | F14: =VLOOKUP($D15,specs!$D$5:$H$17,4)/F15*1.03*$E15+F17 -> 0 | G14: =VLOOKUP($D15,specs!$D$5:$H$17,4)/G15*1.03*$E15+G17 -> 0 | H14: =VLOOKUP($D15,specs!$D$5:$H$17,4)/H15*1.03*$E15+H17 -> 0 | I14: =VLOOKUP($D15,specs!$D$5:$H$17,4)/I15*1.03*$E15+I17 -> 0 | J14: =VLOOKUP($D15,specs!$D$5:$H$17,4)/J15*1.03*$E15+J17 -> 0 | K14: =VLOOKUP($D15,specs!$D$5:$H$17,4)/K15*1.03*$E15+K17 -> 0 | L14: =VLOOKUP($D15,specs!$D$5:$H$17,4)/L15*1.03*$E15+L17 -> 0 | M14: =VLOOKUP($D15,specs!$D$5:$H$17,4)/M15*1.03*$E15+M17 -> 0 | N14: =VLOOKUP($D15,specs!$D$5:$H$17,4)/N15*1.03*$E15+N17 -> 0 | O14: =VLOOKUP($D15,specs!$D$5:$H$17,4)/O15*1.03*$E15+O17 -> 0
C15: amplifier | D15: load | E15: 0 | F15: =F18+F17*F16 -> 60 | G15: =G18+G17*G16 -> 60 | H15: 60 | I15: 60 | J15: 60 | K15: 60 | L15: 60 | M15: 60 | N15: 60 | O15: =O18+O17*O16 -> 60
C16: cable type | D16: cable | E16: 0 | F16: =VLOOKUP($D16,specs!$K$5:$L$19,2)*IF($E$1="m",$D17,($D17*0.3048))/1000 -> 0 | G16: =VLOOKUP($D16,specs!$K$5:$L$19,2)*IF($E$1="m",$D17,($D17*0.3048))/1000 -> 0 | H16: =VLOOKUP($D16,specs!$K$5:$L$19,2)*IF($E$1="m",$D17,($D17*0.3048))/1000 -> 0 | I16: =VLOOKUP($D16,specs!$K$5:$L$19,2)*IF($E$1="m",$D17,($D17*0.3048))/1000 -> 0 | J16: =VLOOKUP($D16,specs!$K$5:$L$19,2)*IF($E$1="m",$D17,($D17*0.3048))/1000 -> 0 | K16: =VLOOKUP($D16,specs!$K$5:$L$19,2)*IF($E$1="m",$D17,($D17*0.3048))/1000 -> 0 | L16: =VLOOKUP($D16,specs!$K$5:$L$19,2)*IF($E$1="m",$D17,($D17*0.3048))/1000 -> 0 | M16: =VLOOKUP($D16,specs!$K$5:$L$19,2)*IF($E$1="m",$D17,($D17*0.3048))/1000 -> 0 | N16: =VLOOKUP($D16,specs!$K$5:$L$19,2)*IF($E$1="m",$D17,($D17*0.3048))/1000 -> 0 | O16: =VLOOKUP($D16,specs!$K$5:$L$19,2)*IF($E$1="m",$D17,($D17*0.3048))/1000 -> 0
C17: span length,m | D17: 0 | E17: 0 | F17: =VLOOKUP($D18,specs!$D$5:$H$17,4)/F18*1.03*$E18+F20 -> 0 | G17: =VLOOKUP($D18,specs!$D$5:$H$17,4)/G18*1.03*$E18+G20 -> 0 | H17: =VLOOKUP($D18,specs!$D$5:$H$17,4)/H18*1.03*$E18+H20 -> 0 | I17: =VLOOKUP($D18,specs!$D$5:$H$17,4)/I18*1.03*$E18+I20 -> 0 | J17: =VLOOKUP($D18,specs!$D$5:$H$17,4)/J18*1.03*$E18+J20 -> 0 | K17: =VLOOKUP($D18,specs!$D$5:$H$17,4)/K18*1.03*$E18+K20 -> 0 | L17: =VLOOKUP($D18,specs!$D$5:$H$17,4)/L18*1.03*$E18+L20 -> 0 | M17: =VLOOKUP($D18,specs!$D$5:$H$17,4)/M18*1.03*$E18+M20 -> 0 | N17: =VLOOKUP($D18,specs!$D$5:$H$17,4)/N18*1.03*$E18+N20 -> 0 | O17: =VLOOKUP($D18,specs!$D$5:$H$17,4)/O18*1.03*$E18+O20 -> 0
C18: amplifier | D18: load | E18: 0 | F18: =F21+F20*F19 -> 60 | G18: =G21+G20*G19 -> 60 | H18: 60 | I18: 60 | J18: 60 | K18: 60 | L18: 60 | M18: 60 | N18: 60 | O18: =O21+O20*O19 -> 60
C19: cable type | D19: cable | E19: 0 | F19: =VLOOKUP($D19,specs!$K$5:$L$19,2)*IF($E$1="m",$D20,($D20*0.3048))/1000 -> 0 | G19: =VLOOKUP($D19,specs!$K$5:$L$19,2)*IF($E$1="m",$D20,($D20*0.3048))/1000 -> 0 | H19: =VLOOKUP($D19,specs!$K$5:$L$19,2)*IF($E$1="m",$D20,($D20*0.3048))/1000 -> 0 | I19: =VLOOKUP($D19,specs!$K$5:$L$19,2)*IF($E$1="m",$D20,($D20*0.3048))/1000 -> 0 | J19: =VLOOKUP($D19,specs!$K$5:$L$19,2)*IF($E$1="m",$D20,($D20*0.3048))/1000 -> 0 | K19: =VLOOKUP($D19,specs!$K$5:$L$19,2)*IF($E$1="m",$D20,($D20*0.3048))/1000 -> 0 | L19: =VLOOKUP($D19,specs!$K$5:$L$19,2)*IF($E$1="m",$D20,($D20*0.3048))/1000 -> 0 | M19: =VLOOKUP($D19,specs!$K$5:$L$19,2)*IF($E$1="m",$D20,($D20*0.3048))/1000 -> 0 | N19: =VLOOKUP($D19,specs!$K$5:$L$19,2)*IF($E$1="m",$D20,($D20*0.3048))/1000 -> 0 | O19: =VLOOKUP($D19,specs!$K$5:$L$19,2)*IF($E$1="m",$D20,($D20*0.3048))/1000 -> 0
C20: span length,m | D20: 0 | E20: 0 | F20: =VLOOKUP($D21,specs!$D$5:$H$17,4)/F21*1.03*$E21+F23 -> 0 | G20: =VLOOKUP($D21,specs!$D$5:$H$17,4)/G21*1.03*$E21+G23 -> 0 | H20: =VLOOKUP($D21,specs!$D$5:$H$17,4)/H21*1.03*$E21+H23 -> 0 | I20: =VLOOKUP($D21,specs!$D$5:$H$17,4)/I21*1.03*$E21+I23 -> 0 | J20: =VLOOKUP($D21,specs!$D$5:$H$17,4)/J21*1.03*$E21+J23 -> 0 | K20: =VLOOKUP($D21,specs!$D$5:$H$17,4)/K21*1.03*$E21+K23 -> 0 | L20: =VLOOKUP($D21,specs!$D$5:$H$17,4)/L21*1.03*$E21+L23 -> 0 | M20: =VLOOKUP($D21,specs!$D$5:$H$17,4)/M21*1.03*$E21+M23 -> 0 | N20: =VLOOKUP($D21,specs!$D$5:$H$17,4)/N21*1.03*$E21+N23 -> 0 | O20: =VLOOKUP($D21,specs!$D$5:$H$17,4)/O21*1.03*$E21+O23 -> 0
C21: amplifier | D21: load | E21: 0 | F21: =B2 -> 60 | G21: =F21-(F3-$B$2) -> 60 | H21: 60 | I21: 60 | J21: 60 | K21: 60 | L21: 60 | M21: 60 | N21: 60 | O21: 60
F22: =IF(F21<0,1,0) -> 0 | G22: =IF(G21<0,1,0) -> 0 | H22: 0 | I22: 0 | J22: 0 | K22: 0 | L22: 0 | M22: 0 | N22: 0 | O22: 0
C24: User added Branch
M27: =O21 -> 60
F34: Main Branch Net11

Sheet AUX (hidden)
D2: R,Ohm | H2: Vdrop,V
B3: length,m | C3: I,A | D3: 540 | E3: 860 | F3: 750 | G3: 3x10 | H3: 540 | I3: 860 | J3: 750 | K3: 3x10 | L3: amp type | M3: Inom,A | N3: Vnom,V | O3: Pnom,W | P3: factor_i | Q3: cable | R3: loop_res | AA3: LIST
A4: 1 | D4: =B4*$R$4 -> 0 | E4: =B4*$R$5 -> 0 | F4: =B4*$R$6 -> 0 | G4: =+B4*$R$7 -> 0 | H4: =$C4*D4 -> 0 | I4: =$C4*E4 -> 0 | J4: =$C4*F4 -> 0 | K4: =$C4*G4 -> 0 | L4: HLN | M4: 1.4 | N4: 60 | O4: 84 | P4: =M4/(O4/N4) -> 1 | Q4: QR540 | R4: =S4/1000 -> 0.00528 | S4: 5.28 | T4: C500 | U4: =V4/1000 -> 0.00564 | V4: 5.64 | AA4: Net11
A5: 2 | D5: 0 | E5: 0 | F5: 0 | G5: =+B5*$R$7 -> 0 | H5: =$C5*D5 -> 0 | I5: =$C5*E5 -> 0 | J5: =$C5*F5 -> 0 | K5: =$C5*G5 -> 0 | L5: TNA | M5: 1 | N5: 60 | O5: 60 | P5: =M5/(O5/N5) -> 1 | Q5: QR860 | R5: =S5/1000 -> 0.00237 | S5: 2.37 | T5: C625 | U5: =V5/1000 -> 0.00361 | V5: 3.61 | AA5: Net12
A6: 3 | D6: 0 | E6: 0 | F6: 0 | G6: =+B6*$R$7 -> 0 | H6: 0 | I6: 0 | J6: 0 | K6: 0 | L6: LEX | M6: 0.5 | N6: 60 | O6: 36 | P6: =M6/(O6/N6) -> 0.8333333333 | Q6: C750 | R6: =S6/1000 -> 0.00249 | S6: 2.49 | AA6: Net21
A7: 4 | D7: 0 | E7: 0 | F7: 0 | G7: 0 | H7: 0 | I7: 0 | J7: 0 | K7: 0 | L7: DBLE | M7: 0.6 | N7: 60 | O7: 24 | P7: =M7/(O7/N7) -> 1.5 | Q7: 3x10 | R7: =+S7/1000 -> 0.0025 | S7: 2.5 | AA7: Net22
A8: 5 | D8: 0 | E8: 0 | F8: 0 | G8: 0 | H8: =$C8*D8 -> 0 | I8: =$C8*E8 -> 0 | J8: 0 | K8: 0 | L8: GNA | M8: 1 | N8: 60 | O8: 60 | P8: =M8/(O8/N8) -> 1 | Q8: C500 | R8: =S8/1000 -> 0.00564 | S8: 5.64 | AA8: Net31
A9: 6 | D9: 0 | E9: 0 | F9: 0 | G9: 0 | H9: =$C9*D9 -> 0 | I9: =$C9*E9 -> 0 | J9: 0 | K9: 0 | Q9: C625 | R9: 0.00361 | S9: 3.61 | AA9: Net32
A10: 7 | D10: 0 | E10: 0 | F10: 0 | G10: 0 | H10: 0 | I10: 0 | J10: 0 | K10: 0 | Q10: 2x10 | R10: 0.00366 | S10: 3.66 | AA10: Net41
A11: 8 | D11: 0 | E11: 0 | F11: 0 | G11: 0 | H11: 0 | I11: 0 | J11: 0 | K11: 0 | Q11: 2x6 | R11: 0.006 | S11: 6 | AA11: Net42
A12: 9 | D12: 0 | E12: 0 | F12: 0 | G12: 0 | H12: 0 | I12: 0 | J12: 0 | K12: 0 | Q12: 4x10 | R12: 0.00183 | S12: 1.83
A13: 10 | D13: 0 | E13: 0 | F13: 0 | G13: 0 | H13: 0 | I13: 0 | J13: 0 | K13: 0 | Q13: 4x6 | R13: 0.003 | S13: 3

Sheet specs
D3: 1 | E3: 2 | F3: 3 | G3: 4 | H3: 5 | K3: 1 | L3: 2
C4: amp type | D4: sorted | E4: Inom,A | F4: Vnom,V | G4: Pnom,W | I4: original | J4: cable | K4: sorted | L4: loop_res | O4: original
C5: load | D5: DBLE | F5: 60 | G5: 30 | H5: 1 | I5: 30 | J5: cable | K5: 2x10 | L5: 3.66 | M5: cable | N5: 1 | O5: 3.66
C6: HLN | D6: future1 | F6: 60 | G6: 0 | H6: 1 | I6: 0 | J6: QR860 | K6: 2x6 | L6: 6 | M6: QR860 | N6: 2 | O6: 6
C7: TNA | D7: future2 | F7: 60 | G7: 0 | H7: 1 | I7: 0 | J7: C750 | K7: 3x10 | L7: 2.5 | M7: C750 | N7: 3 | O7: 2.5
C8: GNA | D8: future3 | F8: 60 | G8: 0 | H8: 1 | I8: 0 | J8: QR715 | K8: 4x10 | L8: 1.83 | M8: QR715 | N8: 4 | O8: 1.83
C9: LEX | D9: future4 | F9: 60 | G9: 0 | H9: 1 | I9: 0 | J9: C625 | K9: 4x6 | L9: 3 | M9: C625 | N9: 5 | O9: 3
C10: DBLE | D10: future5 | F10: 60 | G10: 0 | H10: 1 | I10: 0 | J10: C565 | K10: C500 | L10: 5.64 | M10: C565 | N10: 6 | O10: 5.64
C11: future1 | D11: future6 | F11: 60 | G11: 0 | H11: 1 | I11: 0 | J11: QR540 | K11: C565 | L11: 4.26 | M11: QR540 | N11: 7 | O11: 4.26
C12: future2 | D12: future7 | F12: 60 | G12: 0 | H12: 1 | I12: 0 | J12: C500 | K12: C625 | L12: 3.61 | M12: C500 | N12: 8 | O12: 3.61
C13: future3 | D13: GNA | F13: 60 | G13: 48 | H13: 1 | I13: 48 | J13: QR1125 | K13: C750 | L13: 2.49 | M13: QR1125 | N13: 9 | O13: 2.49
C14: future4 | D14: HLN | F14: 60 | G14: 84 | H14: 1 | I14: 84 | J14: 3x10 | K14: cable | L14: 0 | M14: 2x10 | N14: 10 | O14: 0
C15: future5 | D15: LEX | F15: 60 | G15: 26 | H15: 1 | I15: 24 | J15: 4x10 | K15: QR1125 | L15: 11 | M15: 2x6 | N15: 11 | O15: 1.3
C16: future6 | D16: load | F16: 1 | G16: 0 | H16: 0 | I16: 0 | J16: 2x10 | K16: QR540 | L16: 5.28 | M16: 3x10 | N16: 12 | O16: 5.28
C17: future7 | D17: TNA | F17: 60 | G17: 52 | H17: 1 | I17: 52 | J17: 2x6 | K17: QR715 | L17: 3.27 | M17: 4x10 | N17: 13 | O17: 3.27
J18: 4x6 | K18: QR860 | L18: 2.37 | M18: 4x6 | N18: 14 | O18: 2.37
F19: Range $D$5:$H$17 | J19: type | K19: spare | L19: 0 | O19: 0
D22: Efficiency | F22: tangens alpha | K22: Range $K$5:$L$19 | M22: Cable type | N22: ρ (Ω/Km)
C23: Load,% | D23: Super2M-90 | E23: T-former | F23: Super2M-90 | G23: T-former | H23: load span | I23: SpanN | M23: QR-540 | N23: 5.28
B24: L0 | C24: 4 | D24: 36.55806621 | E24: 62.08372093 | F24: =(D25-D24)/($C25-$C24) -> 4.260676312 | G24: =+(E25-E24)/($C25-$C24) -> 3.48933788 | H24: =+C25-C24 -> 4 | I24: 1 | M24: QR-715 | N24: 3.27
B25: L1 | C25: 8 | D25: 53.60077146 | E25: 76.04107245 | F25: =(D26-D25)/($C26-$C25) -> 2.444555993 | G25: 1.576814017 | H25: =+C26-C25 -> 4 | I25: 2 | M25: QR-860 | N25: 2.37
B26: L2 | C26: 12 | D26: 63.37899543 | E26: 82.34832852 | F26: 1.445186705 | G26: 0.795816365 | H26: 8 | I26: 3 | M26: P3-500 | N26: 5.64
B27: L3 | C27: 20 | D27: 74.94048907 | E27: 88.71485944 | F27: 0.715539049 | G27: 0.271305184 | H27: 10 | I27: 4 | M27: P3-565 | N27: 4.26
B28: L4 | C28: 30 | D28: 82.09587956 | E28: 91.42791128 | F28: 0.484873774 | G28: 0.129423258 | H28: 10 | I28: 5 | M28: P3-625 | N28: 3.61
B29: L5 | C29: 40 | D29: 86.9446173 | E29: 92.72214386 | F29: 0.17963341 | G29: 0.111739769 | H29: 10 | I29: 6
B30: L6 | C30: 50 | D30: 88.7409514 | E30: 93.83954155 | F30: 0.112770009 | G30: 0.036879178 | H30: 10 | I30: 7
B31: L7 | C31: 60 | D31: 89.86865149 | E31: 94.20833333 | F31: 0.089180478 | G31: 0.038966667 | H31: 10 | I31: 8
B32: L8 | C32: 70 | D32: 90.76045627 | E32: 94.598 | F32: 0.051471152 | G32: -0.005637724 | H32: 10 | I32: 9
B33: L9 | C33: 80 | D33: 91.27516779 | E33: 94.54162276 | F33: 0.000400636 | G33: -0.03817227 | H33: 10 | I33: 10
B34: L10 | C34: 90 | D34: 91.27917415 | E34: 94.15990006 | F34: 0.036039225 | G34: -0.087130946 | H34: 10 | I34: 11
B35: L11 | C35: 100 | D35: 91.6395664 | E35: 93.2885906
